Cogmind - Beta 16 @@@ ROGUE MODE // 2026.01.11 @ 13:53:32 Player: PE-P51 Result: Destroyed by G-73 Enforcer with Phase Gun Performance ------------- Evolutions (6) 3000 Regions Visited (29) 5800 Robots Destroyed (373) 1865 Value Destroyed (12143) 12143 Prototype IDs (57) 1140 Alien Tech Used (0) 0 Bonus (4946) 4946 TOTAL SCORE: 28894 Bonus ------- High Alert Combat Kills 628 Follower Combat Kills 3054 Aligned with FarCom 300 Met Data Miner 300 Met Imprinter 300 Met Warlord at Base 500 MAIN.C Attacked Warlord 500 Warlord Defense Kills 120 Friendly Fire -756 Cogmind --------- Core Integrity 0/1150 Matter 295/300 Energy 70/100 System Corruption 0% Temperature Cool (4) Movement Flying (27) Location -4/Warlord Parts ------- > --- POWER (1) -------- (None) > --- PROPULSION (8) --- Improved Diametric Drive Improved Diametric Drive > --- UTILITY (8) ------ Experimental Core Analyzer Hacking Suite Hacking Suite Hacking Suite Advanced System Shield > --- WEAPON (2) ------- (None) > --- INVENTORY (5) ---- Advanced Transmission Jammer Enhanced Quantum Rifle Smartbomb Launcher Vortex Lance Peak State ------------ > --- POWER ------------ Light Antimatter Reactor > --- PROPULSION ------- Makeshift Hover Unit Nuclear Pulse Array Nuclear Pulse Array Impulse Thruster Improved Diametric Drive Improved Diametric Drive > --- UTILITY ---------- Advanced Transmission Jammer Experimental Phase Shifter Makeshift Ablative Armor Hacking Suite Hacking Suite Hacking Suite Hacking Suite Advanced System Shield > --- WEAPON ----------- Railgun Railgun > --- INVENTORY -------- Advanced System Shield Enhanced Quantum Rifle Smartbomb Launcher Phasing Sabre [Rating: 119] Favorites ----------- Power Light Fission Core Engine Reinforced Ion Engine Power Core Light Fission Core Reactor Light Antimatter Reactor Propulsion Cooled VTOL Module Treads Light Treads Leg Aluminum Leg Wheel Armored Wheel Hover Unit Antigrav System Flight Unit Cooled VTOL Module Utility Hacking Suite Device Advanced Sensor Array Storage Cargo Storage Unit Processor Improved Signal Interpreter Hackware Hacking Suite Protection Light Regenerative Plating Weapon Plasma Sword Energy Gun Improved Medium Laser Energy Cannon Ion Cannon Ballistic Gun Hypervelocity Railgun Ballistic Cannon Heavy Flak Cannon Launcher Smartbomb Launcher Special Weapon Improved Remote Datajack Impact Weapon Heavy Flail Slashing Weapon Plasma Sword Piercing Weapon CR-A16's Pointy Stick Special Melee Weapon Improved Datajack Build | -11 -10 -9 -9 -9 -8 -8 -7 -7 -7 -7 -7 -7 -6 -6 -6 -6 -6 -6 -6 -5 -5 -5 -5 -4 -4 -4 -4 -4 -4 ------- Run | Yrd Mat Mat Min Exi Min Mat Fac Was Fac Low Low Dat Pro Fac Was Fac Low Low Zio Pro Fac Ext Cet Fac Was Fac Upp Upp War Slots Evolved 12 | . . 2 . . . 2 2 . . . . . . 2 . . . . . . 2 . . 2 . . . . . Power . | . . . . . . . . . . . . . . . . . . . . . . . . . . . . . . Propulsion 6 | . . . . . . 1 1 . . . . . . 1 . . . . . . 1 . . 2 . . . . . Utility 6 | . . 2 . . . 1 1 . . . . . . 1 . . . . . . 1 . . . . . . . . Weapon . | . . . . . . . . . . . . . . . . . . . . . . . . . . . . . . Parts Attached 271 | . 17 28 5 2 2 41 21 2 4 3 1 . 2 2 2 11 3 5 4 5 20 10 3 22 4 28 5 2 17 Power 34 | . 2 1 1 . . 2 4 . . . . . 1 . . 1 1 . 1 1 1 3 . 6 2 4 2 . 1 Engine 10 | . 2 1 1 . . 2 . . . . . . . . . 1 . . . . . 3 . . . . . . . Core 15 | . . . . . . . 4 . . . . . 1 . . . 1 . 1 1 1 . . 3 . 3 . . . Reactor 9 | . . . . . . . . . . . . . . . . . . . . . . . . 3 2 1 2 . 1 Propulsion 71 | . 7 9 2 . . 14 3 . 1 . . . . . . 4 . 1 . 1 4 1 . 7 . 9 1 1 6 Treads 21 | . 4 5 1 . . 11 . . . . . . . . . . . . . . . . . . . . . . . Leg . | . . . . . . . . . . . . . . . . . . . . . . . . . . . . . . Wheel 9 | . 3 2 1 . . 3 . . . . . . . . . . . . . . . . . . . . . . . Hover 10 | . . . . . . . . . . . . . . . . . . . . . . . . 5 . 4 1 . . Flight 31 | . . 2 . . . . 3 . 1 . . . . . . 4 . 1 . 1 4 1 . 2 . 5 . 1 6 Utility 97 | . 1 9 2 . 2 15 12 1 2 2 1 . 1 2 . 5 2 1 . 1 8 3 1 7 . 10 2 1 6 Device 46 | . . 2 1 . . 9 3 1 1 2 . . . . . 3 1 1 . 1 6 3 . 2 . 5 2 1 2 Storage 2 | . 1 . . . . . 1 . . . . . . . . . . . . . . . . . . . . . . Processor 9 | . . . . . . . 2 . 1 . . . 1 . . . . . . . . . 1 2 . . . . 2 Hackware 17 | . . . . . . 2 4 . . . . . . 2 . 1 1 . . . 2 . . 2 . 3 . . . Protection 23 | . . 7 1 . 2 4 2 . . . 1 . . . . 1 . . . . . . . 1 . 2 . . 2 Artifact . | . . . . . . . . . . . . . . . . . . . . . . . . . . . . . . Weapon 69 | . 7 9 . 2 . 10 2 1 1 1 . . . . 2 1 . 3 3 2 7 3 2 2 2 5 . . 4 Energy Gun 14 | . 2 2 . . . 7 . . . . . . . . . . . 1 . 1 . . . 1 . . . . . Energy Cannon 11 | . 2 4 . . . 1 . . . . . . . . . . . . . . 3 . . . . 1 . . . Ballistic Gun 19 | . 3 2 . . . . . 1 . . . . . . 1 1 . . . 1 1 3 2 . . 1 . . 3 Ballistic Cannon 6 | . . . . . . 2 . . . . . . . . . . . 1 1 . . . . . . 2 . . . Launcher 9 | . . 1 . . . . . . 1 . . . . . . . . 1 2 . 1 . . . 2 1 . . . Special Weapon 1 | . . . . . . . . . . . . . . . . . . . . . . . . 1 . . . . . Impact Weapon 1 | . . . . 1 . . . . . . . . . . . . . . . . . . . . . . . . . Slashing Weapon 5 | . . . . . . . 1 . . 1 . . . . 1 . . . . . 1 . . . . . . . 1 Piercing Weapon 1 | . . . . . . . . . . . . . . . . . . . . . 1 . . . . . . . . Special Melee Weapon 2 | . . . . 1 . . 1 . . . . . . . . . . . . . . . . . . . . . . Unidentified Prototypes 19 | . . 5 1 . . 2 . 1 . . . . . . 1 1 . . 1 . . . 1 . 1 . . . 5 Parts Lost 68 | . 5 3 1 . 2 14 1 . . . . . 3 . . . . 2 . 3 . 2 1 11 . 6 2 2 10 Power 8 | . 2 . . . . 1 1 . . . . . 1 . . . . . . 1 . . . 1 . 1 . . . Propulsion 28 | . 2 2 . . 1 5 . . . . . . . . . . . . . 1 . . 1 6 . 2 1 1 6 Utility 20 | . . 1 1 . 1 3 . . . . . . 2 . . . . . . . . 2 . 3 . 2 1 1 3 Weapon 12 | . 1 . . . . 5 . . . . . . . . . . . 2 . 1 . . . 1 . 1 . . 1 Highest Loss Streak 8 | . 4 2 1 . 1 5 1 . . . . . 3 . . . . 1 . 2 . 1 1 8 . 3 1 1 7 To Critical Strikes . | . . . . . . . . . . . . . . . . . . . . . . . . . . . . . . Average Backups 11 | . 23 29 29 30 29 29 6 5 5 5 5 5 4 3 4 5 4 4 5 5 4 4 4 4 5 4 4 4 4 Power . | . 1 2 3 3 3 3 1 1 1 1 1 1 . . . . . . . . . . . . . . . . . Propulsion 3 | . 8 11 12 12 11 10 . . 1 1 . . . . . . . . . . . . . . . . . . . Utility 2 | . 1 1 1 2 1 6 1 1 . . 1 2 2 1 2 2 2 1 1 1 . . . . . 1 1 1 1 Weapon 3 | . 5 7 6 6 6 7 3 2 2 2 2 2 2 2 2 2 2 2 3 3 3 4 4 3 4 2 3 3 2 Tool/Special . | . . . . . . . . . . . . . . . . . . . . . . . . . . . . . . Unused Backups 68 | . 2 21 3 . . 16 9 2 1 1 . . . . . 1 1 5 1 . . . . . . 1 . . 4 Power 7 | . . 2 1 . . 3 . . 1 . . . . . . . . . . . . . . . . . . . . Propulsion 16 | . . 10 1 . . 4 . . . 1 . . . . . . . . . . . . . . . . . . . Utility 14 | . 1 1 1 . . 2 2 . . . . . . . . 1 1 2 1 . . . . . . 1 . . 1 Weapon 25 | . 1 8 . . . 1 7 2 . . . . . . . . . 3 . . . . . . . . . . 3 Tool/Special 6 | . . . . . . 6 . . . . . . . . . . . . . . . . . . . . . . . Average Slot Usage (%) 91 | . 83 87 81 77 83 89 97 100 99 100 100 100 90 86 93 92 100 98 100 99 94 91 87 81 77 81 74 74 85 Engine 3 | . 13 11 11 11 11 9 . . . . . . . . . . . . . . . 4 5 . . . . . . Core 3 | . . . . . . . 6 7 7 7 7 7 6 6 6 6 6 6 6 5 4 . . . . 1 . . . Treads 3 | . 14 3 1 . 1 19 . . . . . . . . . . . . . . . . . . . . . . . Wheel 4 | . 11 18 20 21 20 7 . . . . . . . . . . . . . . . . . . . . . . . Flight 20 | . . . . . . . 28 30 30 30 30 30 30 26 26 25 33 32 33 32 30 29 23 22 5 17 24 20 28 Device 7 | . . 11 4 . . 9 6 7 8 15 15 15 7 6 6 6 6 6 6 6 12 15 23 15 5 5 2 5 8 Storage 3 | . 14 11 11 11 11 9 . . . . . . . . . . . . . . . . . . . . . . . Processor 6 | . . . . . . . . . . 7 7 7 12 13 13 13 13 13 13 13 11 10 3 6 10 3 . . 1 Hackware 14 | . . . . . . 1 30 30 27 15 15 15 15 20 26 24 20 20 20 20 14 11 11 14 21 27 31 31 26 Protection 6 | . . 10 11 11 18 15 4 7 7 7 7 7 . . . 1 6 5 6 6 4 5 5 4 5 4 5 1 4 Energy Gun 2 | . 2 12 . . . 11 . . . . . . . . . . . . . 4 . . . . . . . . . Energy Cannon 3 | . 10 8 22 . 20 4 . . . . . . 2 . . . 1 1 . . 2 . . . . . . . . Ballistic Gun 2 | . 14 . . . . . . 4 6 6 7 5 4 6 6 4 4 . . . 1 4 7 4 . 1 . . 6 Ballistic Cannon 1 | . . . . . . 1 . . . . . . . . . . . 2 6 . . . . . . 2 4 3 . Slashing Weapon 3 | . . . . . . . 6 7 7 6 6 7 7 6 6 5 6 6 6 6 4 4 2 4 . 1 . . 2 Peak Build Rating 119 | . 10 26 30 23 26 38 48 50 50 53 52 51 50 55 61 71 75 75 72 72 97 102 98 117 96 109 110 104 119 Average Rating 60 | . 9 20 23 20 24 31 45 49 49 50 50 50 47 52 60 59 74 71 71 68 85 95 96 101 90 100 101 94 107 On Entrance 57 | 6 6 10 25 22 20 26 37 47 50 46 51 51 47 48 55 61 71 75 72 72 69 97 98 97 88 91 106 101 92 Avg Prop Armor Cover (%) 1 | . . . . . . . . . . . . . . . . . . . . . 1 . 1 2 1 1 2 2 2 Naked Turns . | . . . . . . . . . . . . . . . . . . . . . . . . . . . . . . Heaviest Build 177 | 10 151 166 167 165 172 177 169 19 20 20 20 20 23 16 17 21 25 25 24 24 25 32 35 32 29 45 40 38 36 Greatest Support 72 | 20 40 43 40 40 24 62 32 20 20 20 20 20 20 20 20 25 25 33 26 26 48 50 50 61 44 72 53 46 51 Greatest Overweight (x) 9 | . 4 9 6 6 7 5 5 . . . . . 1 . . 1 . . . 1 . . 1 3 . 4 . . . Average Overweight (x) . | . 3 5 5 5 6 2 . . . . . . . . . . . . . . . . . . . . . . . Largest Inventory Capacity 30 | . 30 30 30 30 30 30 30 5 5 5 5 5 5 5 5 5 5 5 5 5 5 5 5 5 5 5 5 5 5 Average Capacity 12 | . 29 30 30 30 30 30 6 5 5 5 5 5 5 5 5 5 5 5 5 5 5 5 5 5 5 5 5 5 5 Most Carried 30 | . 30 30 30 30 30 30 30 5 5 5 5 5 5 3 5 5 5 5 5 5 5 5 5 5 5 5 5 5 5 Average Carried 12 | . 23 29 29 30 29 29 6 5 4 4 5 5 4 3 4 4 4 4 4 4 4 4 5 4 4 4 4 4 4 Final Capacity 30 | 8 30 30 30 30 30 30 5 5 5 5 5 5 5 5 5 5 5 5 5 5 5 5 5 5 5 5 5 5 5 Final Carried 30 | 6 30 30 30 30 30 30 5 5 5 5 5 5 4 3 5 5 5 5 5 5 5 5 5 5 5 5 5 5 5 Class Distribution -------------------- 54% | Hacker-Sprinter 29% | Hauler-Mutant 5% | Wizard-Sprinter 4% | Hacker-Mutant Dominant Class ---------------- Hauler-Mutant | -10/Materials Hauler-Mutant | -9/Materials Hauler-Mutant | -9/Mines Hauler-Mutant | -9/Exiles Hauler-Mutant | -8/Mines Hauler-Mutant | -8/Materials Hacker-Sprinter | -7/Factory Hacker-Sprinter | -7/Waste Hacker-Sprinter | -7/Factory Hacker-Sprinter | -7/Lower Caves Hacker-Sprinter | -7/Lower Caves Hacker-Sprinter | -7/Data Miner Hacker-Sprinter | -6/Proximity Caves Hacker-Sprinter | -6/Factory Hacker-Sprinter | -6/Waste Hacker-Sprinter | -6/Factory Hacker-Sprinter | -6/Lower Caves Hacker-Sprinter | -6/Lower Caves Hacker-Sprinter | -6/Zion Hacker-Sprinter | -5/Proximity Caves Hacker-Sprinter | -5/Factory Hacker-Scout | -5/Extension Hacker-Mutant | -5/Cetus Hacker-Sprinter | -4/Factory Hacker-Mutant | -4/Waste Wizard-Sprinter | -4/Factory Wizard-Sprinter | -4/Upper Caves Wizard-Sprinter | -4/Upper Caves Hacker-Sprinter | -4/Warlord Resources | -11 -10 -9 -9 -9 -8 -8 -7 -7 -7 -7 -7 -7 -6 -6 -6 -6 -6 -6 -6 -5 -5 -5 -5 -4 -4 -4 -4 -4 -4 ----------- Run | Yrd Mat Mat Min Exi Min Mat Fac Was Fac Low Low Dat Pro Fac Was Fac Low Low Zio Pro Fac Ext Cet Fac Was Fac Upp Upp War Matter Collected 11866 | 186 291 1035 187 56 310 843 310 140 89 520 460 . 42 . 472 791 143 779 60 388 538 890 284 419 . 1084 931 338 280 Remotely . | . . . . . . . . . . . . . . . . . . . . . . . . . . . . . . Salvage Created 16874 | . 483 2043 195 . 183 2546 266 . 287 283 458 . 68 . 1530 684 114 1137 . 235 1015 2114 61 1023 . 1293 542 236 78 Parts 797 | . 30 117 22 . 14 156 15 . 17 18 23 . . . 42 34 . 50 . 6 34 65 1 58 . 60 20 12 3 Haulers Intercepted 20 | . 2 5 . . . 5 2 . 2 . . . . . . . . . . . 2 2 . . . . . . . Recyclers Shooed 9 | . 1 . . . . 2 . . . . . . . . . . . . . . 1 2 . . . 3 . . . Parts Field Recycled . | . . . . . . . . . . . . . . . . . . . . . . . . . . . . . . Retrieved Matter . | . . . . . . . . . . . . . . . . . . . . . . . . . . . . . . Parts Self-Destructed 124 | . . . . . . . . . . 29 23 . . . . . . 32 . 13 . . . . . . 15 12 . Prevented 5 | . . . . . . . . . . . . . . . . . . 5 . . . . . . . . . . . Parts Restored 3 | . . . . . . . . . . . . . . . . . . . . . 1 . . . . 2 . . . Broken 3 | . . . . . . . . . . . . . . . . . . . . . 1 . . . . 2 . . . Kills | -11 -10 -9 -9 -9 -8 -8 -7 -7 -7 -7 -7 -7 -6 -6 -6 -6 -6 -6 -6 -5 -5 -5 -5 -4 -4 -4 -4 -4 -4 ------- Run | Yrd Mat Mat Min Exi Min Mat Fac Was Fac Low Low Dat Pro Fac Was Fac Low Low Zio Pro Fac Ext Cet Fac Was Fac Upp Upp War Combat Hostiles Destroyed 252 | . 9 37 6 . 9 39 . . 2 5 7 . 1 . 5 2 2 20 . 7 7 27 . 16 . 20 18 12 1 Melee 11 | . . . . . . 1 . . . . . . . . . 1 . . . . 1 3 . 5 . . . . . Guns 86 | . 8 18 . . 1 25 . . 2 3 4 . . . 5 1 . 4 . 2 1 7 . 2 . 2 . . 1 Cannons 54 | . 1 7 3 . 2 10 . . . . . . 1 . . . 2 5 . . 1 . . 1 . 4 12 5 . AOE 95 | . . 9 3 . 6 1 . . . 2 3 . . . . . . 10 . 5 4 17 . 8 . 14 6 7 . Classes Destroyed 21 | . 7 3 2 . . 1 . . . 1 1 . . . 1 1 2 2 . . . . . . . . . . . Worker 19 | . . 3 1 . . 4 . . 1 . . . . . . 3 . . . . . 1 . 5 . 1 . . . Builder 20 | . . . 1 . . 7 2 . 1 . . . . . . 2 . . . . 1 2 . 3 . 1 . . . Tunneler 2 | . 1 . . . . 1 . . . . . . . . . . . . . . . . . . . . . . . Hauler 20 | . 2 5 . . . 5 2 . 2 . . . . . . . . . . . 2 2 . . . . . . . Recycler 25 | . 1 2 . . . 4 . . . . . . . . . 2 . . . . 4 5 . 2 . 5 . . . Minesweeper 2 | . . . . . . . . . . . . . . . . . . 2 . . . . . . . . . . . Mechanic 1 | . . . . . . . . . . . . . . . . 1 . . . . . . . . . . . . . Operator 12 | . 1 4 . . . 2 . . 1 . . . . . . 2 . . . . . 1 . . . 1 . . . Watcher 16 | . 1 4 . . . 2 2 . . . . . . . . . . . . . 2 1 1 3 . . . . . Swarmer 82 | . 3 4 3 . 4 8 . . . 2 3 . . . . . . 9 . 5 4 4 . 8 . 14 6 5 . Grunt 95 | . 6 24 2 . 5 22 . . 2 1 4 . . . . 1 . 5 . . . 9 . 2 . 4 6 2 . Brawler 13 | . . . 1 . . 1 . . . 1 . . . . . . . 2 . 1 . 4 . . . . 1 1 1 Duelist 6 | . . . . . . . . . . 1 . . . . . . . 1 . . . 1 . . . . 3 . . Protector 2 | . . 1 . . . . . . . . . . . . . . . . . . . 1 . . . . . . . Sentry 28 | . . 8 . . . 7 . . . . . . . . . 1 . 2 . 1 1 4 . . . 1 2 1 . Specialist 3 | . . . . . . . . . . . . . . . . . 1 . . . . 2 . . . . . . . Hunter 3 | . . . . . . 1 . . . . . . 1 . . . . . . . 1 . . . . . . . . Programmer 12 | . . . . . . . . . . . . . . . . . 1 . . . 1 . . 6 . 1 . 3 . Compactor 5 | . . . . . . . . . . . . . . . 5 . . . . . . . . . . . . . . Decomposer 7 | . . . . . . . . . . 4 2 . . . . . . 1 . . . . . . . . . . . Packrat 1 | . . . . . . . . . . . 1 . . . . . . . . . . . . . . . . . . Samaritan 5 | . . . . . . . . . . . 2 . . . . . . 3 . . . . . . . . . . . Surgeon 1 | . . . . . . . . . . . . . . . . 1 . . . . . . . . . . . . . Thug 1 | . . . . . . . . . . . . . . . . . . . . . . . . . . 1 . . . Savage 3 | . . . . . . . . . . . . . . . . . . . . . . 2 1 . . . . . . Mutant 1 | . . . . . . . . . . . . . . . . . . 1 . . . . . . . . . . . Infiltrator 1 | . . . . . . . . . . . . . . . . . . 1 . . . . . . . . . . . Best Kill Streak 9 | . 4 8 3 . 5 6 3 . 2 2 3 . 1 . 2 3 1 4 . 5 7 9 1 7 . 6 4 6 1 Combat Bots Only 9 | . 3 8 3 . 5 5 . . 2 2 3 . 1 . 2 1 1 4 . 5 4 9 . 5 . 5 4 6 1 Max Kills in Single Turn 6 | . 1 2 2 . 3 2 1 . 1 1 2 . 1 . 1 1 1 4 . 3 2 3 1 5 . 6 2 3 1 Gunslinging 1 | . . . . . . 1 . . . . . . . . . . . . . . . . . . . . . . . Exploded 5 | . . 2 2 . 3 1 . . . 1 2 . . . . . . 4 . 3 2 3 . 3 . 5 2 3 . Melee 1 | . . . . . . 1 . . . . . . . . . 1 . . . . 1 1 . 1 . . . . . Uniques/NPCs Destroyed . | . . . . . . . . . . . . . . . . . . . . . . . . . . . . . . Combat | -11 -10 -9 -9 -9 -8 -8 -7 -7 -7 -7 -7 -7 -6 -6 -6 -6 -6 -6 -6 -5 -5 -5 -5 -4 -4 -4 -4 -4 -4 -------- Run | Yrd Mat Mat Min Exi Min Mat Fac Was Fac Low Low Dat Pro Fac Was Fac Low Low Zio Pro Fac Ext Cet Fac Was Fac Upp Upp War Hostile Shots Fired 1165 | . 92 137 38 . 43 240 6 . . 14 20 . 22 . 1 31 3 52 . 28 12 43 26 115 2 70 55 29 86 Missed 425 | . 16 39 8 . 7 52 4 . . 8 9 . 7 . 1 18 1 29 . 11 10 20 13 41 1 41 27 13 49 Hits 740 | . 76 98 30 . 36 188 2 . . 6 11 . 15 . . 13 2 23 . 17 2 23 13 74 1 29 28 16 37 Melee 11 | . . . . . . 4 . . . 1 . . . . . . . 3 . . . 1 . . 1 . . . 1 Projectile 729 | . 76 98 30 . 36 184 2 . . 5 11 . 15 . . 13 2 20 . 17 2 22 13 74 . 29 28 16 36 AOE 9 | . . . . . 1 . . . . . . . . . . . . 5 . . . . . . . 2 . 1 . Critical Strikes 33 | . 2 3 1 . 1 5 . . . . . . 1 . . . . . . . . 1 4 5 1 1 4 1 3 Part Disruptions 1 | . . . . . . . . . . . . . . . . . . . . . . 1 . . . . . . . Damage Taken 13447 | . 844 1402 296 . 711 2821 96 59 13 163 161 . 171 . . 186 31 581 . 343 99 400 358 1466 57 1007 594 353 1235 Core 2378 | . 223 198 12 . 149 220 56 4 . 53 18 . 40 . . 35 . 117 . 27 15 12 26 407 . 149 36 48 533 Absorbed by Shields 192 | . . . . . . . . . . . . . . . . . . . . . . 192 . . . . . . . Regen/Repaired (Parts) 1505 | . . 162 . . . 37 18 11 75 . . . . . 34 186 . 286 . 78 233 17 . 259 . 88 . . 21 Core Remaining (%) 61 | 100 10 . . . 10 60 . . . . . . 75 . . . . . . 78 . . 94 . . . . . . Volleys Fired 1334 | . 59 131 13 . 14 160 . 16 12 67 74 . 7 . 75 82 27 117 . 39 32 132 22 43 . 83 82 28 19 Largest 2 | . 2 2 2 . 2 2 . 1 1 1 1 . 1 . 1 1 1 1 . 1 1 1 2 1 . 2 1 1 1 Hottest 126 | . 120 120 120 . 120 126 . 35 35 35 35 . 120 . 40 120 120 120 . 81 81 120 70 120 . 120 60 60 35 Shots Fired 1660 | . 112 248 27 . 18 293 . 16 12 67 74 . 7 . 75 82 27 116 . 39 33 132 25 42 . 85 82 29 19 Gun 1119 | . 93 178 . . 1 233 . 16 12 63 69 . . . 75 78 9 65 . 8 21 99 25 32 . 23 . . 19 Cannon 435 | . 19 62 25 . 9 60 . . . . . . 6 . . 1 18 30 . 20 8 20 . 4 . 55 75 23 . Launcher 105 | . . 8 2 . 8 . . . . 4 5 . 1 . . 3 . 21 . 11 4 13 . 5 . 7 7 6 . Special 1 | . . . . . . . . . . . . . . . . . . . . . . . . 1 . . . . . Kinetic 836 | . 66 2 . . 1 15 . 16 12 63 69 . . . 75 78 9 55 . 20 17 99 25 32 . 65 75 23 19 Thermal 649 | . 46 238 25 . 9 225 . . . . . . 6 . . 1 18 40 . 8 4 13 . 4 . 12 . . . Explosive 101 | . . 8 2 . 8 . . . . 4 5 . 1 . . 3 . 17 . 11 4 13 . 5 . 7 7 6 . Electromagnetic 73 | . . . . . . 53 . . . . . . . . . . . 4 . . 8 7 . . . 1 . . . Robot Hit Streak 16 | . 16 13 6 . 4 15 . 4 3 6 11 . . . 12 6 1 5 . 4 8 16 5 5 . 8 8 8 2 Robot Miss Streak 9 | . 4 7 3 . 3 6 . 3 2 4 3 . . . 3 5 1 3 . 9 1 5 2 3 . 3 5 4 3 Penetration Max 2 | . . . . . . . . 1 . 1 2 . . . 1 . . . . . . 1 1 1 . . . . 1 Secondary Targets 7 | . 3 . . . . 4 . . . . . . . . . . . . . . . . . . . . . . . Max Gunslinging Chain 1 | . 1 . . . . 1 . . . . . . . . . . . . . . . . . . . . . . . Shots Hit Robots 1038 | . 73 153 14 . 6 197 22 10 19 35 42 . . . 58 54 1 50 . 12 36 88 15 46 . 45 38 17 7 Core Hits 639 | . 30 68 7 . 14 106 6 1 8 18 20 . 2 . 15 17 4 59 . 17 20 89 6 33 . 35 38 21 5 Critical Kills 23 | . 1 . . . . . . . 2 2 4 . . . 5 2 . 4 . . . 1 . . . 1 . . 1 Critical Parts Destroyed 24 | . . . . . . . . 1 1 2 5 . . . 5 2 . 2 . 1 . 2 1 1 . 1 . . . Critical Strikes 102 | . 1 5 . . . 9 . 4 4 4 9 . . . 27 6 . 9 . 1 3 5 1 6 . 5 2 . 1 Burn 15 | . . 5 . . . 9 . . . . . . . . . . . 1 . . . . . . . . . . . Destroy 72 | . 1 . . . . . . 4 3 4 9 . . . 27 6 . 8 . 1 1 3 1 1 . 2 . . 1 Blast 5 | . . . . . . . . . . . . . . . . . . . . . . . . . . 3 2 . . Sever 10 | . . . . . . . . . 1 . . . . . . . . . . . 2 2 . 5 . . . . . Melee Attacks 442 | . . . . . . 5 99 . 17 4 12 . 6 . . 38 24 33 1 5 81 33 . 60 . 17 . . 7 Impact 5 | . . . . . . 5 . . . . . . . . . . . . . . . . . . . . . . . Slashing 433 | . . . . . . . 95 . 17 4 12 . 6 . . 38 24 33 1 5 81 33 . 60 . 17 . . 7 Piercing . | . . . . . . . . . . . . . . . . . . . . . . . . . . . . . . Sneak Attacks 68 | . . . . . . 1 9 . 3 4 7 . . . . 10 . 5 . . 7 11 . 7 . 3 . . 1 Combat Hostiles 1 | . . . . . . . . . . . . . . . . . . . . . 1 . . . . . . . . Follow-up Attacks . | . . . . . . . . . . . . . . . . . . . . . . . . . . . . . . Damage Inflicted 39830 | . 805 3588 546 . 711 4288 924 117 614 774 936 . 147 . 650 1189 416 2409 . 923 2135 6583 522 3264 . 3502 2479 1934 374 Guns 11166 | . 570 2069 . . 17 2879 . 117 69 270 214 . . . 650 214 9 323 . 117 214 1821 522 541 . 272 . . 278 Cannons 8499 | . 176 692 339 . 135 1152 . . . . . . 147 . . . 407 804 . 46 179 182 . 169 . 1261 1758 1052 . Explosions 11521 | . . 827 207 . 559 127 . . . 167 183 . . . . . . 821 . 521 549 3308 . 1121 . 1528 721 882 . Melee 8578 | . . . . . . 123 924 . 545 337 539 . . . . 975 . 461 . 239 1193 1272 . 1433 . 441 . . 96 Ramming 66 | . 59 . . . . 7 . . . . . . . . . . . . . . . . . . . . . . . Kinetic 9695 | . 392 32 . . 17 253 . 117 69 270 214 . . . 650 214 9 176 . 46 214 1821 522 541 . 1050 1758 1052 278 Thermal 9335 | . 354 2729 339 . 135 3045 . . . . . . 147 . . . 407 1075 . 117 36 . . 468 . 483 . . . Explosive 10805 | . . 827 207 . 559 . . . . 167 183 . . . . . . 589 . 521 491 3308 . 822 . 1528 721 882 . Electromagnetic 1351 | . . . . . . 860 . . . . . . . . . . . 108 . . 201 182 . . . . . . . Impact 123 | . . . . . . 123 . . . . . . . . . . . . . . . . . . . . . . . Slashing 8455 | . . . . . . . 924 . 545 337 539 . . . . 975 . 461 . 239 1193 1272 . 1433 . 441 . . 96 Piercing . | . . . . . . . . . . . . . . . . . . . . . . . . . . . . . . Highest Corruption 12 | . 1 8 8 8 8 12 . . . . . . . . . . . . . . 1 2 2 4 4 5 5 7 7 Average Corruption 5 | . 1 7 8 8 8 10 . . . . . . . . . . . . . . 1 1 2 3 4 4 5 6 7 Corruption Purged . | . . . . . . . . . . . . . . . . . . . . . . . . . . . . . . Corruption Blocked . | . . . . . . . . . . . . . . . . . . . . . . . . . . . . . . Effects 283 | . 7 25 39 15 14 52 . . . . . . . . . . . . . . 14 12 5 5 7 48 23 16 1 Message Errors 72 | . 1 4 8 5 3 19 . . . . . . . . . . . . . . 3 3 . . . 16 6 4 . Matter Fused 59 | . 2 5 7 5 5 9 . . . . . . . . . . . . . . 2 3 1 1 7 9 1 1 1 Heat Flow Errors 35 | . 1 3 7 1 . 3 . . . . . . . . . . . . . . 3 1 1 1 . 4 5 5 . Energy Discharges 33 | . 1 3 4 1 2 5 . . . . . . . . . . . . . . 1 3 1 1 . 8 1 2 . Parts Rejected 1 | . . . 1 . . . . . . . . . . . . . . . . . . . . . . . . . . Parts Fused 2 | . . . . . . . . . . . . . . . . . . . . . . 1 . . . . 1 . . Data Loss (minor) 40 | . . 6 6 2 1 8 . . . . . . . . . . . . . . 1 . 1 2 . 7 3 3 . Data Loss (major) 14 | . 1 3 2 . 1 1 . . . . . . . . . . . . . . 2 1 1 . . . 2 . . Misfires 13 | . 1 . 3 . 1 3 . . . . . . . . . . . . . . 1 . . . . 2 1 1 . Alerts 8 | . . . 1 1 1 2 . . . . . . . . . . . . . . 1 . . . . . 2 . . Weapon Failures 6 | . . 1 . . . 2 . . . . . . . . . . . . . . . . . . . 2 1 . . Overload Shots . | . . . . . . . . . . . . . . . . . . . . . . . . . . . . . . Overflow Damage 2328 | . 22 48 20 . 35 24 124 . 20 133 73 . . . . 193 17 45 . 114 190 420 . 294 . 418 69 3 66 Projectiles 87 | . 7 28 . . . . . . . . . . . . . . 17 . . . 5 . . 4 . 18 5 3 . Explosions 634 | . . 20 20 . 35 10 . . . . . . . . . . . . . . 27 73 . 94 . 291 64 . . Melee 1607 | . 15 . . . . 14 124 . 20 133 73 . . . . 193 . 45 . 114 158 347 . 196 . 109 . . 66 Knockbacks 22 | . . . . . . 5 . . . . . . . . . . . . . . . . . . . 7 6 4 . Impact 1 | . . . . . . 1 . . . . . . . . . . . . . . . . . . . . . . . Kinetic 20 | . . . . . . 3 . . . . . . . . . . . . . . . . . . . 7 6 4 . Secondary 1 | . . . . . . 1 . . . . . . . . . . . . . . . . . . . . . . . Self-Inflicted Damage 560 | . 27 46 . . 122 51 . . . . . . . . . 24 . 35 . . 15 . . . . 240 . . . Shots 13 | . . 2 . . 3 1 . . . . . . . . . 1 . 2 . . 1 . . . . 3 . . . Rammed 2 | . 1 . . . . 1 . . . . . . . . . . . . . . . . . . . . . . . Targets Rammed 3 | . 2 . . . . 1 . . . . . . . . . . . . . . . . . . . . . . . Kicked . | . . . . . . . . . . . . . . . . . . . . . . . . . . . . . . Crushed 1 | . 1 . . . . . . . . . . . . . . . . . . . . . . . . . . . . Highest Temperature 433 | . 210 183 219 251 433 189 . 13 . 8 5 . 156 . 14 68 188 239 4 58 259 208 102 293 . 351 370 216 324 Average Temperature 58 | . 52 49 83 146 159 49 . 8 . 4 3 . 71 . 7 10 74 35 2 6 62 76 50 77 . 83 72 61 92 Received Heat Transfer 3280 | . 345 591 138 . 300 1224 . . 9 18 54 . . . . 24 . 18 . 36 . 63 . 63 . 141 172 12 72 Effects 4 | . . . . . 3 . . . . . . . . . . . . . . . . . . . . . . . 1 Energy Bleed 2 | . . . . . 1 . . . . . . . . . . . . . . . . . . . . . . . 1 Short Circuit 1 | . . . . . 1 . . . . . . . . . . . . . . . . . . . . . . . . Damage (minor) 1 | . . . . . 1 . . . . . . . . . . . . . . . . . . . . . . . . Siege Activations . | . . . . . . . . . . . . . . . . . . . . . . . . . . . . . . Martial Activations . | . . . . . . . . . . . . . . . . . . . . . . . . . . . . . . Shielding Activations . | . . . . . . . . . . . . . . . . . . . . . . . . . . . . . . Robots Disrupted 1 | . . . . . . . . . . . . . . . . . . . . . 1 . . . . . . . . Combat Hostiles 1 | . . . . . . . . . . . . . . . . . . . . . 1 . . . . . . . . Robots Corrupted 3 | . . . . . . 3 . . . . . . . . . . . . . . . . . . . . . . . Combat Hostiles 2 | . . . . . . 2 . . . . . . . . . . . . . . . . . . . . . . . Parts Fried 11 | . . . . . . 9 . . . . . . . . . . . . . . 2 . . . . . . . . Impact Corruptions 2 | . 1 . . . . 1 . . . . . . . . . . . . . . . . . . . . . . . Robots Melted 6 | . . 3 . . . 1 . . . . . . . . . . . 1 . . . . . . . 1 . . . Combat Hostiles 4 | . . 3 . . . . . . . . . . . . . . . 1 . . . . . . . . . . . Parts Melted 43 | . 1 13 . . 1 19 . . . . . . 7 . . . . . . . . . . . . 2 . . . Heat Transferred 19407 | . 793 6068 518 . 222 6611 . . . . . . 320 . . . 880 2280 . 185 50 . . 520 . 960 . . . Parts Sabotaged 4 | . . . . . . . . . . . . . . . . . . . . . . . . . . . . . 4 Parts Stolen 2 | . . . . . . . . . . . . . . . . . . 2 . . . . . . . . . . . Parts Stripped . | . . . . . . . . . . . . . . . . . . . . . . . . . . . . . . Power Chain Reactions 6 | . . . . . . 1 . . . . . . . . . . . 2 . . 1 . . 2 . . . . . Alert | -11 -10 -9 -9 -9 -8 -8 -7 -7 -7 -7 -7 -7 -6 -6 -6 -6 -6 -6 -6 -5 -5 -5 -5 -4 -4 -4 -4 -4 -4 ------- Run | Yrd Mat Mat Min Exi Min Mat Fac Was Fac Low Low Dat Pro Fac Was Fac Low Low Zio Pro Fac Ext Cet Fac Was Fac Upp Upp War Maximum Alert Level 3 | . . 2 1 . . 2 1 . . . . . . . . 3 . . . . 1 3 2 2 1 2 . . . Low Security (%) 62 | . 100 26 98 . 100 61 92 100 100 . . . . 100 100 16 . . . . 65 40 . 56 85 52 . . . Level 1 21 | . . 43 1 . . 21 7 . . . . . . . . 20 . . . . 34 26 . 23 14 37 . . . Level 2 14 | . . 29 . . . 16 . . . . . . . . . 39 . . . . . 25 100 19 . 10 . . . Level 3 1 | . . . . . . . . . . . . . . . . 24 . . . . . 8 . . . . . . . Level 4 . | . . . . . . . . . . . . . . . . . . . . . . . . . . . . . . Level 5 . | . . . . . . . . . . . . . . . . . . . . . . . . . . . . . . High Security . | . . . . . . . . . . . . . . . . . . . . . . . . . . . . . . Max Security . | . . . . . . . . . . . . . . . . . . . . . . . . . . . . . . Peak Influence 1078 | . 99 537 207 . 122 477 212 41 131 . . . . . . 977 . . . . 338 1078 596 642 218 645 . . . Initial 561 | . . . 207 . . 16 212 9 . . . . . . . . . . . . 15 163 561 265 218 54 . . . Average 183 | . 15 277 45 . 48 195 95 6 46 . . . . . . 471 . . . . 108 303 524 211 151 220 . . . Influence Increases 14320 | . 376 1300 171 . 283 1347 288 67 333 385 322 . 30 . . 1697 30 915 . 332 709 2331 213 1066 . 1228 549 326 22 Destroy 0b10 Robot/C 6560 | . 180 720 120 . 180 780 . . 100 280 200 . 20 . . 720 20 380 . 260 160 960 80 360 . 400 360 260 20 Destroy 0b10 Robot/NC 655 | . 30 100 10 . . 125 35 . 35 . . . . . . 70 . 10 . 5 45 75 5 70 . 40 . . . Destroy Leader 1166 | . 56 228 20 . 20 194 8 . 38 30 10 . 10 . . 164 10 30 . 20 48 84 . 66 . 70 20 40 . Allied During Kill 1484 | . . . . . 1 . . . 128 75 7 . . . . 371 . . . 32 24 755 46 13 . . 4 26 2 Trap Triggered on 0b10 30 | . . . . . . . 30 . . . . . . . . . . . . . . . . . . . . . . Successful Hack 414 | . 19 29 . . . 22 73 . . . . . . . . 82 . . . . 66 71 . 52 . . . . . Select Force Hacks 170 | . 30 30 . . . 60 . . . . . . . . . . . . . . . . . 50 . . . . . Disable Machine 600 | . 30 60 . . 30 30 . . 15 . . . . . . 105 . . . . 45 75 . 105 . 105 . . . Destroy Structure 1381 | . 1 58 21 . 52 16 67 52 17 . . . . . . 125 . . . . 216 236 22 200 . 298 . . . Partial Spotted 195 | . . . . . . . 30 15 . . . . . . . . . . . . 45 45 . 15 . 45 . . . Lose Combat Pursuer 1665 | . 30 75 . . . 120 45 . . . 105 . . . . 60 . 495 . 15 60 30 60 135 . 270 165 . . Influence Decreases 14320 | . 373 771 703 . 241 922 729 93 328 325 323 64 30 . . 1191 536 241 674 307 400 1661 743 916 546 664 656 337 546 Entered New Map 3696 | . . 3 325 . . 26 255 17 . 3 13 64 . . . . 188 . 674 . 10 171 443 209 406 24 238 103 524 Time Decay 7340 | . 343 588 368 . 204 669 464 56 217 242 270 . 30 . . 426 348 181 . 197 390 462 150 401 140 580 398 214 2 Lost Part 507 | . 30 30 10 . 17 130 10 . . . . . . . . . . 20 . 30 . 20 10 100 . 60 20 20 . Lost Ally 1030 | . . . . . 20 . . 20 111 80 40 . . . . 165 . 40 . 80 . 258 140 56 . . . . 20 Purge Threat 1747 | . . 150 . . . 97 . . . . . . . . . 600 . . . . . 750 . 150 . . . . . Squads Dispatched 76 | . 2 8 . . . 10 5 . 4 . 1 . . . . 10 . 1 . . 10 3 . 10 . 12 . . . Investigation 33 | . 1 4 . . . 5 2 . 2 . 1 . . . . 3 . . . . 5 . . 6 . 4 . . . Extermination 17 | . . . . . . . 3 . 1 . . . . . . 2 . . . . 3 . . 3 . 5 . . . Reinforcement 18 | . 1 3 . . . 2 . . 1 . . . . . . 5 . 1 . . 2 1 . 1 . 1 . . . Assault 4 | . . 1 . . . . . . . . . . . . . . . . . . . 2 . . . 1 . . . Garrison 4 | . . . . . . 3 . . . . . . . . . . . . . . . . . . . 1 . . . Intercept . | . . . . . . . . . . . . . . . . . . . . . . . . . . . . . . Searches Triggered . | . . . . . . . . . . . . . . . . . . . . . . . . . . . . . . Unchained Authorized 3 | . . . . . . . . . . . . . . . . 1 1 1 . . . . . . . . . . . Data Miner Redirects 4 | . . . . . . . . . . . . . . . . . . . . . 1 . . 2 . 1 . . . Construction Impeded 2 | . . . . . . . . . . . . . . . . 1 . . . . . . . . . 1 . . . Haulers Reinforced 4 | . . . . . . . . . 1 . . . . . . 2 . . . . . . . 1 . . . . . Active Scanning Responses . | . . . . . . . . . . . . . . . . . . . . . . . . . . . . . . Cargo Convoy Interrupts 1 | . . . . . . . . . . . . . . . . . . . . . 1 . . . . . . . . Stealth | -11 -10 -9 -9 -9 -8 -8 -7 -7 -7 -7 -7 -7 -6 -6 -6 -6 -6 -6 -6 -5 -5 -5 -5 -4 -4 -4 -4 -4 -4 --------- Run | Yrd Mat Mat Min Exi Min Mat Fac Was Fac Low Low Dat Pro Fac Was Fac Low Low Zio Pro Fac Ext Cet Fac Was Fac Upp Upp War Distress Signals 36 | . 4 2 . . . 11 1 . 2 . . . . . . 4 . . . . 2 4 2 1 . 3 . . . Communications Jammed 12 | . . . . . . . . . 1 . . . . . . 7 . . . . . . . . . 4 . . . Distress Signals 12 | . . . . . . . . . 1 . . . . . . 7 . . . . . . . . . 4 . . . Times Spotted 516 | . 25 61 6 . 10 65 13 6 2 15 15 . 5 . 8 22 6 36 . 10 24 40 8 28 6 32 22 11 40 Peak Tracking Total 28 | . 5 7 3 . 6 5 3 6 2 7 4 . 4 . 6 5 8 9 . 5 3 14 5 9 6 8 9 5 28 Tactical Retreats 57 | . 1 3 . . . 6 2 . . 2 4 . . . 2 2 . 9 . 1 3 2 2 5 . 8 5 . . Traps | -11 -10 -9 -9 -9 -8 -8 -7 -7 -7 -7 -7 -7 -6 -6 -6 -6 -6 -6 -6 -5 -5 -5 -5 -4 -4 -4 -4 -4 -4 ------- Run | Yrd Mat Mat Min Exi Min Mat Fac Was Fac Low Low Dat Pro Fac Was Fac Low Low Zio Pro Fac Ext Cet Fac Was Fac Upp Upp War Traps Triggered 34 | . 1 4 . . . 5 3 . 2 . . . . 1 . 1 . . . . 8 4 . 2 . 2 . . 1 Indirectly . | . . . . . . . . . . . . . . . . . . . . . . . . . . . . . . Trap Hack Attempts 2 | . . . . . . . 2 . . . . . . . . . . . . . . . . . . . . . . Triggered 1 | . . . . . . . 1 . . . . . . . . . . . . . . . . . . . . . . Disarmed 7 | . . . . . . . . . . . . . . . . . . . . . . . . 7 . . . . . Reprogrammed 11 | . . . . . . . 11 . . . . . . . . . . . . . . . . . . . . . . Reused 14 | . . . . . . . 3 . . . . . . . . . . 11 . . . . . . . . . . . Traps Extracted . | . . . . . . . . . . . . . . . . . . . . . . . . . . . . . . Installed 17 | . . . . . . . . . . . . . . . . . . 17 . . . . . . . . . . . Triggered 3 | . . . . . . . 3 . . . . . . . . . . . . . . . . . . . . . . Most Traps Carried 5 | . . . . . . . . . . . . . . . . . . 5 . . . . . . . . . . . Machines | -11 -10 -9 -9 -9 -8 -8 -7 -7 -7 -7 -7 -7 -6 -6 -6 -6 -6 -6 -6 -5 -5 -5 -5 -4 -4 -4 -4 -4 -4 ---------- Run | Yrd Mat Mat Min Exi Min Mat Fac Was Fac Low Low Dat Pro Fac Was Fac Low Low Zio Pro Fac Ext Cet Fac Was Fac Upp Upp War Machines Disabled 46 | . 2 4 . . 2 2 . . 1 . . . . . . 7 . . . . 3 9 . 7 . 7 1 . 1 Max in Single Turn 4 | . 1 1 . . 1 1 . . 1 . . . . . . . . . . . 1 2 . 4 . 2 1 . 1 Garrison Access 8 | . . . . . . 1 3 . 1 . . . . 1 . 1 . . . . . . . . . 1 . . . Machines Repaired . | . . . . . . . . . . . . . . . . . . . . . . . . . . . . . . Machines Dismantled . | . . . . . . . . . . . . . . . . . . . . . . . . . . . . . . Machines Sabotaged . | . . . . . . . . . . . . . . . . . . . . . . . . . . . . . . Overloaded Fab Kills . | . . . . . . . . . . . . . . . . . . . . . . . . . . . . . . Hacking | -11 -10 -9 -9 -9 -8 -8 -7 -7 -7 -7 -7 -7 -6 -6 -6 -6 -6 -6 -6 -5 -5 -5 -5 -4 -4 -4 -4 -4 -4 --------- Run | Yrd Mat Mat Min Exi Min Mat Fac Was Fac Low Low Dat Pro Fac Was Fac Low Low Zio Pro Fac Ext Cet Fac Was Fac Upp Upp War Machines Accessed 155 | . 8 13 . 1 . 11 20 . 13 1 1 3 . 2 . 19 . . 1 . 16 8 1 16 . 16 . 1 4 Terminals 81 | . 6 7 . . . 4 12 . 7 . 1 . . . . 10 . . . . 9 6 1 10 . 8 . . . Fabricators 17 | . . . . . . . 3 . 1 . . . . 1 . 3 . . . . 4 . . 3 . 2 . . . Repair Stations 12 | . . 2 . . . 2 1 . 1 . . . . . . 1 . . . . 1 1 . 1 . 2 . . . Recycling Units 17 | . 2 2 . . . 2 . . 2 . . . . . . 3 . . . . 1 1 . 2 . 2 . . . Scanalyzers 8 | . . 2 . . . 2 1 . 1 . . . . . . 1 . . . . . . . . . 1 . . . Garrison Access 9 | . . . . . . 1 3 . 1 . . . . 1 . 1 . . . . 1 . . . . 1 . . . Total Hacks 532 | . 14 38 . 1 . 44 73 . 35 1 3 21 . 9 . 75 . . 5 . 51 40 3 60 . 50 . 1 8 Successful 342 | . 5 28 . 1 . 23 61 . 26 1 3 21 . 3 . 42 . . 5 . 22 23 1 36 . 32 . 1 8 Failed 188 | . 9 10 . . . 20 11 . 9 . . . . 6 . 33 . . . . 29 17 2 24 . 18 . . . Catastrophic 31 | . 2 1 . . . . . . 1 . . . . . . 3 . . . . 8 3 1 10 . 2 . . . Database Lockouts 2 | . . . . . . 1 1 . . . . . . . . . . . . . . . . . . . . . . Manual 245 | . 12 24 . 1 . 16 27 . 22 . . . . . . 34 . . . . 18 24 2 38 . 26 . . 1 Terminals 287 | . 11 23 . . . 10 43 . 23 . 3 . . . . 39 . . . . 29 31 3 42 . 30 . . . Fabricators 60 | . . . . . . . 11 . 1 . . . . 5 . 11 . . . . 16 . . 10 . 6 . . . Repair Stations 42 | . . 6 . . . 7 2 . 3 . . . . . . 8 . . . . 2 5 . 4 . 5 . . . Recycling Units 45 | . 3 3 . . . 9 . . 3 . . . . . . 12 . . . . 3 4 . 4 . 4 . . . Scanalyzers 47 | . . 6 . . . 17 12 . 4 . . . . . . 4 . . . . . . . . . 4 . . . Garrison Access 14 | . . . . . . 1 5 . 1 . . . . 4 . 1 . . . . 1 . . . . 1 . . . Terminal Hacks 140 | . . 9 . 1 . 3 23 . 8 1 3 21 . . . 13 . . 5 . 6 12 1 13 . 12 . 1 8 Record 16 | . . . . . . . . . . . 3 6 . . . . . . . . . . . . . . . . 7 Part Schematic 20 | . . . . . . . 2 . 1 . . 8 . . . . . . 5 . 1 . . 2 . 1 . . . Robot Schematic 5 | . . . . . . . 1 . . . . 4 . . . . . . . . . . . . . . . . . Robot Analysis 3 | . . 2 . . . . . . . . . . . . . 1 . . . . . . . . . . . . . Prototype ID Bank 4 | . . . . . . . . . . . . 3 . . . . . . . . . 1 . . . . . . . Open Door 4 | . . . . . . . . . . 1 . . . . . . . . . . . . 1 . . . . 1 1 Level Access Points 1 | . . . . . . . 1 . . . . . . . . . . . . . . . . . . . . . . Branch Access Points 7 | . . 1 . . . 1 1 . 1 . . . . . . 1 . . . . . . . 1 . 1 . . . Machine Index 1 | . . . . . . . 1 . . . . . . . . . . . . . . . . . . . . . . Terminal Index 1 | . . . . . . . . . . . . . . . . . . . . . 1 . . . . . . . . Fabricator Index 2 | . . . . . . . . . . . . . . . . . . . . . 1 . . . . 1 . . . Repair Station Index 1 | . . . . . . . . . 1 . . . . . . . . . . . . . . . . . . . . Garrison Index 1 | . . . . . . . . . . . . . . . . 1 . . . . . . . . . . . . . Alert Level 13 | . . 2 . . . 1 1 . . . . . . . . 1 . . . . . 4 . 2 . 2 . . . Unreport Threat 12 | . . 1 . . . 1 . . . . . . . . . 4 . . . . . 5 . 1 . . . . . Locate Traps 8 | . . . . . . . 3 . 2 . . . . . . 1 . . . . . . . 2 . . . . . Disarm Traps 2 | . . . . . . . . . . . . . . . . . . . . . . . . 2 . . . . . Reprogram Traps 3 | . . . . . . . 3 . . . . . . . . . . . . . . . . . . . . . . Dispatch Records 2 | . . . . . . . 1 . . . . . . . . . . . . . . . . . . 1 . . . Maintenance Status 1 | . . . . . . . . . . . . . . . . . . . . . 1 . . . . . . . . Security Status 1 | . . . . . . . . . . . . . . . . . . . . . . 1 . . . . . . . Patrol Status 1 | . . . . . . . . . . . . . . . . . . . . . . . . 1 . . . . . Recall Investigation 6 | . . . . . . . 2 . 1 . . . . . . . . . . . 1 . . 1 . 1 . . . Recall Extermination 5 | . . . . . . . 2 . . . . . . . . . . . . . . . . . . 3 . . . Hauler Manifests 7 | . . 2 . . . . 1 . 1 . . . . . . 1 . . . . . 1 . 1 . . . . . Registered Components 4 | . . . . . . . 1 . 1 . . . . . . 1 . . . . . . . . . 1 . . . Registered Prototypes 2 | . . . . . . . 1 . . . . . . . . 1 . . . . . . . . . . . . . Zone Layout 6 | . . 1 . . . . 2 . . . . . . . . 1 . . . . 1 . . . . 1 . . . Proto ID Catalog 1 | . . . . 1 . . . . . . . . . . . . . . . . . . . . . . . . . Fabricator Hacks 28 | . . . . . . . 5 . 1 . . . . 2 . 5 . . . . 7 . . 4 . 4 . . . Network Status 7 | . . . . . . . 2 . 1 . . . . 1 . 1 . . . . 1 . . 1 . . . . . Load Schematic 10 | . . . . . . . 2 . . . . . . . . 2 . . . . 3 . . 1 . 2 . . . Build 11 | . . . . . . . 1 . . . . . . 1 . 2 . . . . 3 . . 2 . 2 . . . Repair Station Hacks 27 | . . 2 . . . 4 2 . 2 . . . . . . 6 . . . . 2 3 . 3 . 3 . . . Scan Component 16 | . . 1 . . . 3 1 . 1 . . . . . . 3 . . . . 1 2 . 2 . 2 . . . Repair 11 | . . 1 . . . 1 1 . 1 . . . . . . 3 . . . . 1 1 . 1 . 1 . . . Recycling Unit Hacks 13 | . 1 2 . . . 1 . . 1 . . . . . . 5 . . . . . 1 . 2 . . . . . Process 2 | . . . . . . . . . . . . . . . . 2 . . . . . . . . . . . . . Retrieve Matter 1 | . . . . . . . . . . . . . . . . 1 . . . . . . . . . . . . . Retrieve Components 10 | . 1 2 . . . 1 . . 1 . . . . . . 2 . . . . . 1 . 2 . . . . . Scanalyzer 35 | . . 5 . . . 9 10 . 4 . . . . . . 3 . . . . . . . . . 4 . . . Insert Component 14 | . . 2 . . . 4 4 . 1 . . . . . . 1 . . . . . . . . . 2 . . . Analyze 15 | . . 2 . . . 4 4 . 1 . . . . . . 2 . . . . . . . . . 2 . . . Retrieve Study 6 | . . 1 . . . 1 2 . 2 . . . . . . . . . . . . . . . . . . . . Garrison Access Hacks 8 | . . . . . . 1 3 . 1 . . . . 1 . 1 . . . . . . . . . 1 . . . Seal Access 8 | . . . . . . 1 3 . 1 . . . . 1 . 1 . . . . . . . . . 1 . . . Unauthorized Hacks 91 | . 4 10 . . . 5 18 . 9 . . . . . . 9 . . . . 7 7 . 14 . 8 . . . Terminals 55 | . 3 7 . . . 1 11 . 8 . . . . . . 2 . . . . 4 6 . 8 . 5 . . . Assimilate 4 | . . . . . . . 3 . . . . . . . . . . . . . . . . 1 . . . . . Botnet 46 | . 2 6 . . . 1 8 . 6 . . . . . . 2 . . . . 4 6 . 6 . 5 . . . Operators 4 | . 1 1 . . . . . . 1 . . . . . . . . . . . . . . 1 . . . . . Skim 1 | . . . . . . . . . 1 . . . . . . . . . . . . . . . . . . . . Fabricators 17 | . . . . . . . 6 . . . . . . . . 2 . . . . 3 . . 5 . 1 . . . Report 2 | . . . . . . . 1 . . . . . . . . . . . . . 1 . . . . . . . . Prioritize 5 | . . . . . . . 1 . . . . . . . . 1 . . . . . . . 2 . 1 . . . Liberate 3 | . . . . . . . 1 . . . . . . . . . . . . . . . . 2 . . . . . Haulers 3 | . . . . . . . 2 . . . . . . . . . . . . . 1 . . . . . . . . Overload 1 | . . . . . . . . . . . . . . . . . . . . . . . . 1 . . . . . Recompile 3 | . . . . . . . 1 . . . . . . . . 1 . . . . 1 . . . . . . . . Repair Stations 4 | . . 2 . . . . . . 1 . . . . . . 1 . . . . . . . . . . . . . Patch 4 | . . 2 . . . . . . 1 . . . . . . 1 . . . . . . . . . . . . . Recycling Units 10 | . 1 . . . . 1 . . . . . . . . . 4 . . . . . 1 . 1 . 2 . . . Recyclers 6 | . . . . . . 1 . . . . . . . . . 2 . . . . . 1 . 1 . 1 . . . Mask 3 | . . . . . . . . . . . . . . . . 2 . . . . . . . . . 1 . . . Tunnel 1 | . 1 . . . . . . . . . . . . . . . . . . . . . . . . . . . . Scanalyzers 5 | . . 1 . . . 3 1 . . . . . . . . . . . . . . . . . . . . . . Researchers 2 | . . . . . . 1 1 . . . . . . . . . . . . . . . . . . . . . . Extract 3 | . . 1 . . . 2 . . . . . . . . . . . . . . . . . . . . . . . Garrison Access . | . . . . . . . . . . . . . . . . . . . . . . . . . . . . . . Data Cores Recovered 4 | . . 1 . . . . . . 1 . . . . . . 1 . . . . . . . . . 1 . . . Used 2 | . . 1 . . . . . . . . . . . . . 1 . . . . . . . . . . . . . Hacking Detections 120 | . 7 9 . . . 9 15 . 11 . 1 . . 2 . 15 . . . . 14 7 1 14 . 15 . . . Full Trace Events 20 | . . . . . . 3 1 . 1 . 1 . . . . 1 . . . . 4 . . 5 . 4 . . . Feedback Events 1 | . . . . . . . . . . . . . . . . . . . . . . . . . . 1 . . . Corruption 1 | . . . . . . . . . . . . . . . . . . . . . . . . . . 1 . . . Feedback Blocked . | . . . . . . . . . . . . . . . . . . . . . . . . . . . . . . Robot Schematics Acquired 9 | . . . . . . . 1 . . . . 4 . . . . . . 4 . . . . . . . . . . Robots Built 6 | . . . . . . . . . . . . . . . . 2 . . . . 2 . . 2 . . . . . Authchips . | . . . . . . . . . . . . . . . . . . . . . . . . . . . . . . Time 459 | . . . . . . . . . . . . . . . . 50 . . . . 222 . . 187 . . . . . Total Robot Build Rating 42 | . . . . . . . . . . . . . . . . 10 . . . . 18 . . 14 . . . . . Part Schematics Acquired 56 | . . 7 . . . 10 5 . 2 . . 8 . . . . . . 19 . 1 . . 2 . 2 . . . Parts Built 9 | . . . . . . . 2 . . . . . . . . 1 . . . . 3 . . 1 . 2 . . . Authchips 3 | . . . . . . . 1 . . . . . . . . 1 . . . . 1 . . . . . . . . Time 486 | . . . . . . . 36 . . . . . . 58 . 50 . . . . 160 . . 38 . 144 . . . Total Part Build Rating 52 | . . . . . . . 6 . . . . . . . . 5 . . . . 22 . . 5 . 14 . . . Part Studies Acquired 6 | . . 1 . . . 1 2 . 2 . . . . . . . . . . . . . . . . . . . . Parts Repaired 11 | . . 1 . . . 1 1 . 1 . . . . . . 3 . . . . 1 1 . 1 . 1 . . . Time 516 | . . 51 . . . 30 30 . 56 . . . . . . 94 . . . . 89 35 . 28 . 103 . . . Parts Recycled . | . . . . . . . . . . . . . . . . . . . . . . . . . . . . . . Recycled Matter 7 | . . . . . . . . . . . . . . . . 7 . . . . . . . . . . . . . Retrieved Matter 7 | . . . . . . . . . . . . . . . . 7 . . . . . . . . . . . . . Retrieved Components 46 | . 10 16 . . . 10 . . 3 . . . . . . 4 . . . . . . . 3 . . . . . Parts Scanalyzed 14 | . . 2 . . . 4 4 . 1 . . . . . . 1 . . . . . . . . . 2 . . . Part Schematics Acquired 11 | . . 2 . . . 4 3 . 1 . . . . . . . . . . . . . . . . 1 . . . Parts Damaged . | . . . . . . . . . . . . . . . . . . . . . . . . . . . . . . Bothacking | -11 -10 -9 -9 -9 -8 -8 -7 -7 -7 -7 -7 -7 -6 -6 -6 -6 -6 -6 -6 -5 -5 -5 -5 -4 -4 -4 -4 -4 -4 ------------ Run | Yrd Mat Mat Min Exi Min Mat Fac Was Fac Low Low Dat Pro Fac Was Fac Low Low Zio Pro Fac Ext Cet Fac Was Fac Upp Upp War Used RIF Installer . | . . . . . . . . . . . . . . . . . . . . . . . . . . . . . . Robots Hacked 5 | . . . . . . . 4 . . . . . . . . . . . . . . . . 1 . . . . . Non-combat 5 | . . . . . . . 4 . . . . . . . . . . . . . . . . 1 . . . . . Combat . | . . . . . . . . . . . . . . . . . . . . . . . . . . . . . . Robot Hacks Applied 5 | . . . . . . . 4 . . . . . . . . . . . . . . . . 1 . . . . . find_chute 5 | . . . . . . . 4 . . . . . . . . . . . . . . . . 1 . . . . . Relay Couplers Released 4 | . . . . . . . . . . . . . . . . . . . . . . . . . . 4 . . . Programmers 4 | . . . . . . . . . . . . . . . . . . . . . . . . . . 4 . . . Fabnet Peak Effective % . | . . . . . . . . . . . . . . . . . . . . . . . . . . . . . . Robots Rewired 23 | . . . . . . . . . . 2 . . . . . . . 2 . . . 16 . . . . 2 . 1 Allies Hacked . | . . . . . . . . . . . . . . . . . . . . . . . . . . . . . . Hacks Repelled . | . . . . . . . . . . . . . . . . . . . . . . . . . . . . . . Allies | -11 -10 -9 -9 -9 -8 -8 -7 -7 -7 -7 -7 -7 -6 -6 -6 -6 -6 -6 -6 -5 -5 -5 -5 -4 -4 -4 -4 -4 -4 -------- Run | Yrd Mat Mat Min Exi Min Mat Fac Was Fac Low Low Dat Pro Fac Was Fac Low Low Zio Pro Fac Ext Cet Fac Was Fac Upp Upp War Total Allies 87 | . . . 3 . . . 2 18 . 2 . . . . 18 2 . 2 4 . 2 26 . 5 . . 2 . 1 Largest Group 19 | . . . 3 3 3 . 2 18 15 6 2 . . . 18 18 . 1 4 4 2 19 10 3 . . 2 2 1 Highest-Rated Group 656 | . . . 40 40 40 . 36 434 371 163 48 . . . 638 638 . 30 104 104 138 656 280 98 . . 94 94 43 Highest-Rated Ally 159 | . . . 16 16 16 . 26 35 35 35 32 . . . 50 50 . 30 31 31 69 159 39 49 . . 47 47 43 Total Orders 4 | . . . . . . . 2 . . . . . . . . . . . . . . . . 2 . . . . . STAY 3 | . . . . . . . 2 . . . . . . . . . . . . . . . . 1 . . . . . ROAM 1 | . . . . . . . . . . . . . . . . . . . . . . . . 1 . . . . . Ally Attacks 654 | . . . . . 6 . . 111 35 31 9 . . . 15 159 . . . 30 13 180 45 12 . . . 2 6 Total Damage 18887 | . . . . . 82 . . 4171 532 1183 313 . . . 228 4800 . . . 402 559 4789 1072 549 . . . 50 157 Kills 111 | . . . . . . . . 8 5 12 3 . . . 1 40 . . . 6 1 26 5 3 . . . 1 . Allies Corrupted 2 | . . . . . . . . . . . . . . . . . . . . . . . . 2 . . . . . Allies Melted 2 | . . . . . 1 . . . 1 . . . . . . . . . . . . . . . . . . . . Intel | -11 -10 -9 -9 -9 -8 -8 -7 -7 -7 -7 -7 -7 -6 -6 -6 -6 -6 -6 -6 -5 -5 -5 -5 -4 -4 -4 -4 -4 -4 ------- Run | Yrd Mat Mat Min Exi Min Mat Fac Was Fac Low Low Dat Pro Fac Was Fac Low Low Zio Pro Fac Ext Cet Fac Was Fac Upp Upp War Active Infowar (turns) 16975 | . . . 1 . . 2 768 219 460 591 590 24 25 . . 265 2152 8893 1507 798 310 6 . 110 . 241 4 1 8 Sensors 14655 | . . . 1 . . . . . 68 591 590 24 5 . . . 2152 8893 1507 798 20 6 . . . . . . . Structural 2 | . . . . . . 2 . . . . . . . . . . . . . . . . . . . . . . . Decoding 2 | . . . . . . . . . . . . . . . . . . . . . . . . . . . . . 2 Jamming 2771 | . . . . . . . 768 219 460 61 259 . 25 . . 265 . 60 . 2 290 . . 110 . 241 4 1 6 Robot Analysis Total 3 | . . 2 . . . . . . . . . . . . . 1 . . . . . . . . . . . . . Derelict Logs Recovered 11 | . . . 1 . . . . . . 1 1 . 1 . . . 1 3 1 . . . . . . . 1 1 . Drone Launches . | . . . . . . . . . . . . . . . . . . . . . . . . . . . . . . Drone Recoveries . | . . . . . . . . . . . . . . . . . . . . . . . . . . . . . . Exploration | -11 -10 -9 -9 -9 -8 -8 -7 -7 -7 -7 -7 -7 -6 -6 -6 -6 -6 -6 -6 -5 -5 -5 -5 -4 -4 -4 -4 -4 -4 ------------- Run | Yrd Mat Mat Min Exi Min Mat Fac Was Fac Low Low Dat Pro Fac Was Fac Low Low Zio Pro Fac Ext Cet Fac Was Fac Upp Upp War Turns Passed 38391 | . 1792 3249 1333 489 583 4081 1176 221 488 594 590 24 175 23 597 1113 2153 8893 1507 852 1761 1255 313 1183 282 1786 944 458 476 Spaces Moved 37861 | 1 673 1388 684 263 263 1267 2588 509 975 1210 1316 85 423 77 756 1981 1212 6451 1396 1164 2684 1481 281 1632 436 2578 1892 1166 1029 Core 14 | . . . . . . . 6 . . . . . . . . . . . . . . . . 7 . 1 . . . Treads 939 | . 191 33 10 2 . 703 . . . . . . . . . . . . . . . . . . . . . . . Legs 49 | 1 48 . . . . . . . . . . . . . . . . . . . . . . . . . . . . Wheels 3573 | . 434 1355 674 261 263 564 22 . . . . . . . . . . . . . . . . . . . . . . Hover 1313 | . . . . . . . . . . . . . . . . . . . . . . . . 132 436 745 . . . Flight 31973 | . . . . . . . 2560 509 975 1210 1316 85 423 77 756 1981 1212 6451 1396 1164 2684 1481 281 1493 . 1832 1892 1166 1029 Fastest Speed 11 | 120 120 150 180 180 180 140 26 26 26 26 26 26 26 26 26 23 23 11 24 20 11 11 11 12 48 23 27 29 17 Average Speed 47 | 120 225 174 184 182 190 240 27 26 26 26 26 26 26 26 26 25 23 24 24 23 23 23 79 27 48 32 28 30 22 Slowest Speed 480 | 120 400 480 480 480 195 320 200 26 26 26 26 26 96 26 26 96 23 26 24 92 30 24 103 200 48 250 31 34 29 Overloaded Moves 320 | . . . . . . . . . . . . . . . . . . 120 . 27 17 58 18 30 . 50 . . . Propulsion Burnouts 1 | . . . . . . . . . . . . . . . . . . . . . . . . 1 . . . . . Robots Hopped 110 | . . . . . . . 9 6 7 2 2 . . 2 10 . . . . . 9 26 . 5 . 28 2 . 2 Potential Cave-ins 4 | . . . . . . . . . . . . . . . . 2 . 2 . . . . . . . . . . . Cave-ins Triggered . | . . . . . . . . . . . . . . . . . . . . . . . . . . . . . . Exploration Rate (%) 72 | 2 97 90 93 63 60 75 57 97 27 98 96 70 57 2 95 48 82 100 87 94 46 88 81 37 99 44 99 95 87 Regions Visited 29 Branch Regions 16 Pre-discovered Areas 7 | . 1 . 1 . . . . . . 1 1 1 . . . . . . . . . . . . . . . 1 1 Known Exits Taken 13 | . . 1 . . . . . . 1 1 1 1 1 . . 1 1 1 1 1 1 . . . . 1 . . . Unknown Exits Taken 10 | 1 1 . 1 1 1 1 . . . . . . . . . . . . . . . 1 1 . . . 1 1 . Scrap Searched 45 | . . . 2 . 1 . . . . 4 8 . 1 . . . 3 12 3 2 . . . . . . 5 4 . Spaces Dug 470 | . . 16 23 . 42 3 67 . 3 19 36 . 19 . . 26 26 45 . 17 56 10 4 25 . 26 1 . 6 Terrain Destroyed 1563 | . . 65 29 . 68 11 67 . 3 25 61 . 20 . . 60 29 147 . 113 124 172 10 132 . 193 155 70 9 Melee 261 | . . . . . . 3 67 . 3 . 4 . 6 . . 25 24 22 . . 56 10 . 25 . 10 . . 6 Projectile 211 | . . 2 6 . 1 1 . . . . . . 2 . . 1 5 5 . 14 . 24 10 9 . 43 67 18 3 AOE 1082 | . . 63 23 . 67 7 . . . 23 55 . 12 . . 34 . 119 . 99 67 135 . 98 . 140 88 52 . Terrain Rammed . | . . . . . . . . . . . . . . . . . . . . . . . . . . . . . . Walls Destroyed . | . . . . . . . . . . . . . . . . . . . . . . . . . . . . . . Machines Disabled . | . . . . . . . . . . . . . . . . . . . . . . . . . . . . . . Actions | -11 -10 -9 -9 -9 -8 -8 -7 -7 -7 -7 -7 -7 -6 -6 -6 -6 -6 -6 -6 -5 -5 -5 -5 -4 -4 -4 -4 -4 -4 --------- Run | Yrd Mat Mat Min Exi Min Mat Fac Was Fac Low Low Dat Pro Fac Was Fac Low Low Zio Pro Fac Ext Cet Fac Was Fac Upp Upp War Total 55662 | . 843 1974 736 274 324 2001 2883 575 1159 1410 1473 85 468 77 1070 2431 3021 13636 2565 1694 3644 2181 343 2213 507 3381 2215 1244 1235 Wait 14800 | . 50 263 15 3 30 411 130 50 118 99 65 . 27 . 242 290 1747 6918 1158 471 779 370 35 431 57 655 209 40 137 Move 37636 | . 672 1387 683 262 262 1266 2570 499 961 1205 1311 84 422 73 740 1980 1211 6450 1395 1163 2666 1438 280 1623 435 2521 1887 1165 1025 Hop 89 | . . . . . . . 9 3 6 2 2 . . 2 5 . . . . . 8 16 . 4 . 28 2 . 2 Pick Up 224 | . 31 49 5 1 2 42 7 2 4 1 1 . . . 4 2 2 35 2 2 8 4 1 1 2 7 3 3 3 Fast Attach 138 | . 2 4 1 . 3 4 8 . 1 1 . . 1 1 . 8 . 5 . 3 26 9 1 18 4 20 4 2 12 Attach 83 | . 5 10 2 . 2 15 11 . . . . . 1 1 . 2 . 3 1 1 4 7 . 3 . 7 4 3 1 Detach 26 | . 1 . 1 . . 1 . . . . . . . . . 3 . 1 . . 2 8 . 4 . 4 1 . . Swap 357 | . 17 77 9 7 9 55 15 3 6 11 6 1 4 . 2 20 7 14 5 8 17 18 3 12 3 15 3 . 10 Drop 305 | . 4 53 7 1 2 41 32 2 5 3 2 . . . 2 6 3 36 3 2 21 18 1 10 6 24 7 3 11 Fire 1334 | . 59 131 13 . 14 160 . 16 12 67 74 . 7 . 75 82 27 117 . 39 32 132 22 43 . 83 82 28 19 Melee 442 | . . . . . . 5 99 . 17 4 12 . 6 . . 38 24 33 1 5 81 33 . 60 . 17 . . 7 Ram 1 | . 1 . . . . . . . . . . . . . . . . . . . . . . . . . . . . Kick . | . . . . . . . . . . . . . . . . . . . . . . . . . . . . . . Crush 2 | . 1 . . . . 1 . . . . . . . . . . . . . . . . . . . . . . . Escape Stasis 49 | . . . . . . . . . 29 . . . . . . . . . . . . 16 . 4 . . . . . Rewire 157 | . . . . . . . . . . 17 . . . . . . . 7 . . . 112 . . . . 13 . 8 Trap 19 | . . . . . . . 2 . . . . . . . . . . 17 . . . . . . . . . . . Miscellaneous . | . . . . . . . . . . . . . . . . . . . . . . . . . . . . . . Route ------- -11/Scrapyard -10/Materials (discovered 4 exits: *Mat x3 / [*Min]) -9/Materials (discovered 4 exits: *Mat x3 / *Min) -9/Mines (discovered 3 exits: *Mat x2 / *Exi) -9/Exiles -8/Mines -8/Materials (discovered 3 exits: *Fac x3) -7/Factory (discovered 7 exits: *Fac x4 / Sto / *Low x2) -7/Waste -7/Factory (discovered 3 exits: Sto / *Low x2) -7/Lower Caves -7/Lower Caves (discovered 2 exits: *Fac / *Dat) -7/Data Miner -6/Proximity Caves -6/Factory -6/Waste -6/Factory (discovered 5 exits: *Fac x3 / *Low x2) -6/Lower Caves -6/Lower Caves (discovered 2 exits: *Fac / *Zio) -6/Zion -5/Proximity Caves -5/Factory (discovered 4 exits: *Fac / *Upp / *Ext x2) -5/Extension (discovered 2 exits: *Fac / *Cet) -5/Cetus (discovered 2 exits: *Fac / [*Arc]) -4/Factory (discovered 3 exits: Upp x2 / Arm) -4/Waste -4/Factory (discovered 4 exits: [*Res] / *Upp x2 / Arm) -4/Upper Caves -4/Upper Caves (discovered 2 exits: [*Res] / *War) -4/Warlord History --------- Turn | Location | Event 1 | -11/Scrapyard | Discovered new exit (range 0) 1 | -11/Scrapyard | Entered Materials 108 | -10/Materials | Discovered new exit (range 11) 192 | -10/Materials | Discovered new exit (range 16) 359 | -10/Materials | Build established: Hauler-Mutant 546 | -10/Materials | Discovered new exit (range 15) 969 | -10/Materials | Core integrity fell below 50% 1022 | -10/Materials | Lost 4 parts (1p2n1w) 1047 | -10/Materials | Discovered new exit (range 15) 1453 | -10/Materials | Core integrity fell below 20% 1793 | -10/Materials | Entered another Materials area 1793 | -9/Materials | Evolved 2 slots: Utility x2 2308 | -9/Materials | Discovered new exit (range 5) 2707 | -9/Materials | Destroyed 8 combat bots 2952 | -9/Materials | Discovered new exit (range 15) 3151 | -9/Materials | Discovered new exit (range 12) 3817 | -9/Materials | Repaired Imp. Medium Laser 4097 | -9/Materials | Discovered new exit (range 14) 4193 | -9/Materials | First assault squad dispatched 4866 | -9/Materials | Identified exit to Mines 5042 | -9/Materials | Entered Mines 5181 | -9/Mines | Deemed a non-threat by the Exiles lab entrance 5181 | -9/Mines | Discovered new exit (range 5) 5407 | -9/Mines | Found a damaged Exp. Sensor Array with a note attached 5411 | -9/Mines | Found Prototype Device 5564 | -9/Mines | Discovered new exit (range 10) 5664 | -9/Mines | Identified Exp. Sensor Array 5764 | -9/Mines | Core integrity fell below 50% 5987 | -9/Mines | Discovered new exit (range 10) 6171 | -9/Mines | Assisted by bots powering up and referring to "LRC-V3" 6375 | -9/Mines | Entered Exiles 6375 | -9/Exiles | Accompanied by 3 allies 6423 | -9/Exiles | Met 8R-AWN 6452 | -9/Exiles | Met EX-HEX 6501 | -9/Exiles | Met EX-BIN 6526 | -9/Exiles | Aligned with FarCom system 6528 | -9/Exiles | Given EX-Vault access code 6585 | -9/Exiles | Opened EX-Vault 6596 | -9/Exiles | Found Gui. Plasma Cannon 6640 | -9/Exiles | Warned to stay clear of 0b10 Research branches 6694 | -9/Exiles | Met EX-DEC 6822 | -9/Exiles | Discovered new exit (range 14) 6864 | -9/Exiles | Left Exiles lab with Gui. Plasma Cannon 6864 | -9/Exiles | Entered Mines 6864 | -8/Mines | Accompanied by 3 allies 6885 | -8/Mines | Core integrity fell below 20% 6904 | -8/Mines | Lost 3 allies 7420 | -8/Mines | Discovered new exit (range 12) 7447 | -8/Mines | Entered Materials 7447 | -8/Materials | Evolved 2 slots: Propulsion x1, Utility x1 8024 | -8/Materials | Central database locked down 8620 | -8/Materials | Discovered new exit (range 15) 9013 | -8/Materials | Garrison activated, responded to threat 9743 | -8/Materials | Discovered new exit (range 15) 10170 | -8/Materials | Discovered new exit (range 8) 10319 | -8/Materials | Lost 5 parts (1p2n2w) 10549 | -8/Materials | System corruption reached 10% 10855 | -8/Materials | Repaired Broken Gauss Rifle 11528 | -8/Materials | Entered Factory 11528 | -7/Factory | Evolved 2 slots: Propulsion x1, Utility x1 11696 | -7/Factory | Identified exit to Factory 11706 | -7/Factory | Central database locked down 11777 | -7/Factory | Identified exit to Storage 11777 | -7/Factory | Identified exit to Lower Caves 11863 | -7/Factory | Build established: Hacker-Sprinter 11920 | -7/Factory | Fabricated Imp. Light Armor Plating? 12435 | -7/Factory | Repaired Imp. VTOL Module 12704 | -7/Factory | Manually triggered Chute Trap 12704 | -7/Factory | Sucked down chute 12704 | -7/Factory | Entered Waste 12709 | -7/Waste | Spotted C-40 Crusher 12724 | -7/Waste | Spotted C-40 Crusher 12730 | -7/Waste | Spotted C-40 Crusher 12732 | -7/Waste | Spotted C-40 Crusher 12733 | -7/Waste | Spotted C-40 Crusher 12733 | -7/Waste | Spotted C-40 Crusher 12743 | -7/Waste | Discovered new exit (range 11) 12761 | -7/Waste | Warlord forces began an assault 12772 | -7/Waste | Allies destroyed C-40 Crusher 12775 | -7/Waste | Allies destroyed C-40 Crusher 12795 | -7/Waste | Allies destroyed C-40 Crusher 12800 | -7/Waste | Allies destroyed C-40 Crusher 12831 | -7/Waste | Lost 3 allies 12925 | -7/Waste | Entered Factory 12925 | -7/Factory | Accompanied by 15 allies 13203 | -7/Factory | Lost 3 allies 13290 | -7/Factory | Repaired Hyp. Coil Gun 13339 | -7/Factory | Lost 3 allies 13413 | -7/Factory | Entered Lower Caves 13413 | -7/Lower Caves | Accompanied by 6 allies 13661 | -7/Lower Caves | Attracted the attention of an 0b10 outpost 13711 | -7/Lower Caves | Encountered a Warlord checkpoint 13726 | -7/Lower Caves | Lost 4 allies 13818 | -7/Lower Caves | Entered a destroyed Warlord outpost 13822 | -7/Lower Caves | Found DCF Scrap (14 items) 13864 | -7/Lower Caves | Learned location of Zion (-6) 13905 | -7/Lower Caves | Discovered new exit (range 4) 13906 | -7/Lower Caves | Identified exit to Lower Caves 14007 | -7/Lower Caves | Entered another Lower Caves area 14007 | -7/Lower Caves | Accompanied by 2 allies 14248 | -7/Lower Caves | Encountered a Warlord checkpoint 14248 | -7/Lower Caves | Discovered new exit (range 7) 14249 | -7/Lower Caves | Identified exit to Data Miner 14318 | -7/Lower Caves | Attracted the attention of an 0b10 base 14431 | -7/Lower Caves | Learned Extension stockpile data 14544 | -7/Lower Caves | Discovered exit to Factory (range 14) 14597 | -7/Lower Caves | Entered Data Miner 14597 | -7/Data Miner | Discovered new exit (range 6) 14602 | -7/Data Miner | Met Data Miner 14609 | -7/Data Miner | Learned location of Section 7 (-2) 14609 | -7/Data Miner | Acquired the access code to Warlord's prototype stash 14612 | -7/Data Miner | Received God Mode back door access code from Data Miner 14619 | -7/Data Miner | Identified exit to Proximity Caves 14621 | -7/Data Miner | Entered Proximity Caves 14669 | -6/Proximity Caves | Lost 3 parts (1p2u) 14683 | -6/Proximity Caves | Spotted B-75 Beast 14796 | -6/Proximity Caves | Entered Factory 14796 | -6/Factory | Evolved 2 slots: Propulsion x1, Utility x1 14818 | -6/Factory | Discovered new exit (range 7) 14819 | -6/Factory | Sucked down chute 14819 | -6/Factory | Entered Waste 14824 | -6/Waste | Spotted C-40 Crusher 14833 | -6/Waste | Spotted C-40 Crusher 14836 | -6/Waste | Spotted C-40 Crusher 14837 | -6/Waste | Spotted C-40 Crusher 14848 | -6/Waste | Spotted C-40 Crusher 14851 | -6/Waste | Spotted C-40 Crusher 14907 | -6/Waste | Destroyed C-40 Crusher 14996 | -6/Waste | Destroyed C-40 Crusher 15011 | -6/Waste | Destroyed C-40 Crusher 15079 | -6/Waste | Destroyed C-40 Crusher 15086 | -6/Waste | Discovered new exit (range 16) 15119 | -6/Waste | Warlord forces began an assault 15133 | -6/Waste | Destroyed C-40 Crusher 15142 | -6/Waste | Allies destroyed C-40 Crusher 15416 | -6/Waste | Identified exit to Factory 15416 | -6/Waste | Entered Factory 15416 | -6/Factory | Accompanied by 18 allies 15435 | -6/Factory | Discovered new exit (range 15) 15519 | -6/Factory | Lost 7 allies 15592 | -6/Factory | Repaired Hyp. Railgun 15624 | -6/Factory | Repaired Imp. VTOL Module 15655 | -6/Factory | Repaired Imp. VTOL Module 15901 | -6/Factory | Fabricated X-67 Chaingunner (x2) 16052 | -6/Factory | Identified exit to Lower Caves 16135 | -6/Factory | Discovered new exit (range 16) 16213 | -6/Factory | Fabricated Lgt. Regenerative Plating (x1) 16434 | -6/Factory | Unchained authorized (CL-0N3) 16474 | -6/Factory | Exiles provided nearest exit location to -5/Factory 16527 | -6/Factory | Discovered exit to Factory (range 12) 16529 | -6/Factory | Entered Lower Caves 16534 | -6/Lower Caves | Encountered a Warlord checkpoint 16573 | -6/Lower Caves | Learned Factory emergency access door positions 16708 | -6/Lower Caves | Unchained authorized (CL-0N3) 18625 | -6/Lower Caves | Spotted B-75 Beast 18655 | -6/Lower Caves | Discovered new exit (range 10) 18657 | -6/Lower Caves | Identified exit to Lower Caves 18679 | -6/Lower Caves | Attracted the attention of an 0b10 outpost 18679 | -6/Lower Caves | Y-64 Sentinel reconstituted as Executioner 18682 | -6/Lower Caves | Entered another Lower Caves area 18709 | -6/Lower Caves | Learned 4 Factory zone layouts 18748 | -6/Lower Caves | Attracted the attention of an 0b10 checkpoint 18875 | -6/Lower Caves | Discovered new exit (range 14) 18889 | -6/Lower Caves | Learned 4 Factory zone layouts 18898 | -6/Lower Caves | Unchained authorized (CL-0N3) 22343 | -6/Lower Caves | Encountered a Warlord checkpoint 22353 | -6/Lower Caves | Gui. Plasma Cannon suddenly broke down 22675 | -6/Lower Caves | G-50 Soldier reconstituted as Martyr 22752 | -6/Lower Caves | Discovered exit to Factory (range 15) 22854 | -6/Lower Caves | G-50 Soldier reconstituted as H-71 Marshal 23273 | -6/Lower Caves | Identified exit to Zion 23769 | -6/Lower Caves | S-27 Virus reconstituted as D-83 Annihilator 27575 | -6/Lower Caves | Entered Zion 27613 | -6/Zion | Discovered new exit (range 14) 27616 | -6/Zion | Identified exit to Proximity Caves 27668 | -6/Zion | Learned 8 Factory zone layouts 27682 | -6/Zion | Gained Derelict followers 27744 | -6/Zion | Found CR-A16's Pointy Stick 27768 | -6/Zion | Rebuked by Imprinter 29082 | -6/Zion | Entered Proximity Caves 29082 | -5/Proximity Caves | Accompanied by 4 allies 29109 | -5/Proximity Caves | Attracted the attention of an 0b10 checkpoint 29142 | -5/Proximity Caves | Lost 4 allies 29760 | -5/Proximity Caves | Discovered exit to Factory (range 8) 29934 | -5/Proximity Caves | Entered Factory 29934 | -5/Factory | Evolved 2 slots: Propulsion x1, Utility x1 29935 | -5/Factory | Identified exit to Extension 30021 | -5/Factory | Fabricated HERF Cannon (x2) 30439 | -5/Factory | Discovered new exit (range 4) 30440 | -5/Factory | Identified exit to Upper Caves 30774 | -5/Factory | Repaired Plasma Sword? 31116 | -5/Factory | Incoming investigation squad redirected 31119 | -5/Factory | Discovered new exit (range 16) 31170 | -5/Factory | Cargo convoy interrupted 31218 | -5/Factory | Fabricated Cld. Impulse Thruster (x1) 31330 | -5/Factory | Discovered exit to Extension (range 11) 31592 | -5/Factory | Fabricated H-88 Terminator (x2) 31649 | -5/Factory | Build established: Hacker-Ninja 31695 | -5/Factory | Entered Extension 31695 | -5/Extension | Accompanied by 2 allies 31710 | -5/Extension | Rescued a captive Derelict 31760 | -5/Extension | Rescued a captive Derelict 31760 | -5/Extension | Rescued a captive Derelict 31816 | -5/Extension | Rescued A7 31828 | -5/Extension | Lost 4 allies 31896 | -5/Extension | Rescued a captive Derelict 31896 | -5/Extension | Rescued a captive Derelict 32006 | -5/Extension | Repaired Broken Lgt. Angular Momentum Engine 32077 | -5/Extension | Rescued a captive Derelict 32120 | -5/Extension | Disrupted transfer network 32176 | -5/Extension | Build established: Hacker-Scout 32411 | -5/Extension | Spotted B-75 Beast 32419 | -5/Extension | Allies destroyed B-75 Beast 32606 | -5/Extension | Rescued a captive Derelict 32606 | -5/Extension | Rescued a captive Derelict 32721 | -5/Extension | Rescued a captive Derelict 32872 | -5/Extension | Discovered new exit (range 10) 32872 | -5/Extension | Discovered new exit (range 6) 32895 | -5/Extension | First assault squad dispatched 32934 | -5/Extension | Destroyed 9 combat bots 32950 | -5/Extension | Entered Cetus 32950 | -5/Cetus | Accompanied by 10 allies 32951 | -5/Cetus | Lost 6 allies 32960 | -5/Cetus | Spotted Cetus Guard 32960 | -5/Cetus | Spotted Cetus Guard 32964 | -5/Cetus | Spotted Cetus Guard 32967 | -5/Cetus | Spotted Cetus Guard 32976 | -5/Cetus | Allies destroyed Cetus Guard 32985 | -5/Cetus | Allies destroyed Cetus Guard 32993 | -5/Cetus | Allies destroyed Cetus Guard 33001 | -5/Cetus | Allies destroyed Cetus Guard 33023 | -5/Cetus | Lost 5 allies 33116 | -5/Cetus | Discovered new exit (range 16) 33158 | -5/Cetus | Spotted Cetus Guard 33158 | -5/Cetus | Spotted Cetus Guard 33172 | -5/Cetus | Spotted Cetus Guard 33203 | -5/Cetus | Lost 4 allies 33247 | -5/Cetus | Discovered new exit (range 15) 33263 | -5/Cetus | Entered Factory 33263 | -4/Factory | Evolved 2 slots: Propulsion x2 33352 | -4/Factory | Identified exit to Upper Caves 33352 | -4/Factory | Identified exit to Armory 33584 | -4/Factory | Fabricated W-44 Eye? 33620 | -4/Factory | Repaired Nuclear Pulse Array 33644 | -4/Factory | Incoming investigation squad redirected 33931 | -4/Factory | Build established: Hacker-Sprinter 34142 | -4/Factory | Gui. Plasma Cannon suddenly broke down 34319 | -4/Factory | Lost 8 parts (1p4n2u1w) 34400 | -4/Factory | Incoming investigation squad redirected 34421 | -4/Factory | Fabricated Lgt. Regenerative Plating (x1) 34446 | -4/Factory | Manually triggered Chute Trap 34446 | -4/Factory | Sucked down chute 34446 | -4/Factory | Entered Waste 34448 | -4/Waste | Found Prototype Launcher 34448 | -4/Waste | Identified Gui. Micro-nuke Launcher 34476 | -4/Waste | Found Unknown Launcher 34476 | -4/Waste | Identified Fusion Bomb Launcher 34483 | -4/Waste | Spotted C-40 Crusher 34486 | -4/Waste | Spotted C-40 Crusher 34488 | -4/Waste | Spotted C-40 Crusher 34499 | -4/Waste | Spotted C-40 Crusher 34528 | -4/Waste | Spotted C-40 Crusher 34535 | -4/Waste | Build established: Hacker-Mutant 34547 | -4/Waste | Spotted C-40 Crusher 34569 | -4/Waste | Discovered new exit (range 12) 34728 | -4/Waste | Entered Factory 34769 | -4/Factory | Garrison activated, responded to threat 35035 | -4/Factory | Found Powered Armor 35068 | -4/Factory | Allied Derelicts emerged from ambush trap array 35222 | -4/Factory | Lost 3 parts (1n1u1w) 35514 | -4/Factory | Fabricated Cld. Impulse Thruster (x1) 35557 | -4/Factory | Discovered new exit (range 15) 35626 | -4/Factory | Found Prototype Processor 35680 | -4/Factory | Repaired Broken Enh. Quantum Rifle? 36073 | -4/Factory | Build established: Wizard-Sprinter 36204 | -4/Factory | Gui. Plasma Cannon suddenly broke down 36243 | -4/Factory | Incoming investigation squad redirected 36263 | -4/Factory | Fabricated Tri-rail Accelerator (x1) 36478 | -4/Factory | First assault squad dispatched 36514 | -4/Factory | Entered Upper Caves 36559 | -4/Upper Caves | Attracted the attention of an 0b10 checkpoint 36640 | -4/Upper Caves | Learned 12 Research zone layouts 36697 | -4/Upper Caves | Found DCF Scrap (13 items) 36735 | -4/Upper Caves | Discovered new exit (range 6) 36901 | -4/Upper Caves | Core integrity fell below 50% 36949 | -4/Upper Caves | Attracted the attention of an 0b10 outpost 37458 | -4/Upper Caves | Entered another Upper Caves area 37458 | -4/Upper Caves | Accompanied by 2 allies 37478 | -4/Upper Caves | Discovered new exit (range 11) 37562 | -4/Upper Caves | P-70 Sage assimilated allied Veteran 7a 37591 | -4/Upper Caves | Attracted the attention of an 0b10 checkpoint 37866 | -4/Upper Caves | Discovered new exit (range 15) 37916 | -4/Upper Caves | Entered Warlord 37916 | -4/Warlord | Accompanied by 1 ally 37926 | -4/Warlord | System corruption cleaned by Quarantine Array 38017 | -4/Warlord | Opened Warlord's prototype stash 38023 | -4/Warlord | Found Prototype Device 38023 | -4/Warlord | Identified Exp. Phase Shifter 38116 | -4/Warlord | Found Prototype Processor 38131 | -4/Warlord | Found Prototype Device 38131 | -4/Warlord | Identified Minesniffer Drone Bay 38161 | -4/Warlord | Warlord's base attacked by MAIN.C 38173 | -4/Warlord | Met Warlord 38220 | -4/Warlord | Identified Exp. Core Analyzer 38222 | -4/Warlord | Found Prototype Piercing Weapon 38241 | -4/Warlord | Learned Quarantine security intel 38241 | -4/Warlord | Learned Armory repair station intel 38241 | -4/Warlord | Learned 4 Research zone layouts 38241 | -4/Warlord | Learned 4 Command zone layouts 38243 | -4/Warlord | Build established: Hacker-Sprinter 38373 | -4/Warlord | Attacked by Warlord forces 38373 | -4/Warlord | Spotted C6-G1A(B) 38373 | -4/Warlord | Spotted CB-EEF(B) 38377 | -4/Warlord | Warlord forces counterattacked 38383 | -4/Warlord | Core integrity fell below 20% 38392 | -4/Warlord | Destroyed by G-73 Enforcer with Phase Gun Last Messages --------------- 38377_ Acquired Xenon Bombardment Thruster. 38378_ Xenon Bombardment Thruster blown off. 38378_ Mak. Ablative Armor blown off. 38378_ Cesium-ion Thruster blown off. 38378_ Lgt. Quantum Reactor blown off. 38378_ E-15 Imp destroyed. 38379_ Hacking Suite destroyed. 38379_ Critical hit (Blast). 38380_ Slug penetrates System Quarantine Field Array. 38380_ Dropped Railgun. 38380_ Critical hit (Burn: +37). 38381_ Dropped Phasing Sabre. 38381_ VTOL Module destroyed. 38381_ Exp. Phase Shifter destroyed. 38381_ Cesium-ion Thruster destroyed. 38382_ Acquired 40 matter. 38382_ Knocked back. 38382_ Acquired Xenon Bombardment Thruster. 38384_ Xenon Bombardment Thruster destroyed. 38384_ 96-5TK(g) destroyed. Map ----- +----------------------------------------------------+ | | | ??????????????????????????????? | | ??????????????????????????????? | | ??????????????????????????????? | | ??????????????????????????????? | | ??????????????????????????????? | | ??????????????????????????????? | | ??????????????????????????????? | | ??????????????????????????????? | | ??????????????????????????????? | | ??????????????????????????????? | | ??????????????????????????????? | | ??????????????????????????????? | | ?????????????????????##???????? | | ?????????????????????# ???????? | | ???????????????????#? ???????? | | ??????????????????## ??????? | | ??????????????????# ??????? | | ??????????????????# ??????? | | ??????????????????# ??????? | | ???????????????????# ??????? | | ????????????????????# ??????? | | ????????????? #???### g??????? | | ???????????# "#### igg ###???? | | ???????????? g p ###?? | | ????????????# " ??# @ ##? | | ?????????????# ### #? | | ?????????????##" ## #? | | ?????????????# " ## ##? | | ???????????????"" ## #?? | | ???????????????## ### ##? | | ##?????????????# "### #? | | "############????? " ###s ##? | | %"""""""""""####????# # ##?? | | %!%"=/"" "" " "###?## ##??? | | =!=%%[ ### ### ##??? | | =%*%*= = " ## #??? | | ==%!=% / !%! #### #??? | | ]![!= = &#### ##??# #??? | | *= % """""#??## #???# ##?? | | " """"""""""#???# #?### ^ #?? | | "############???# #### # #?? | | ##??????????????# #?# #?? | | ???????????????? ### #?? | | ??????????????? ### ##?? | | ??????????????# ##?# #??? | | ?????????????? ???## ##??? | | ?????????????# ????## #???? | | ?????????????# #?????# #???? | | ?????????????# ??????## ##??? | +----------------------------------------------------+ Best States ------------- Heat Dissipation 71 Energy Generation 25 Energy Capacity 315 Matter Stores 300 Matter Capacity 300 Sight Range 16 Robot Scan Range 16 Terrain Scan Density 10 Jamming Range 16 Power Amplification 20 Armor Coverage 450 Weapon Shielding 66 Melee Speed Boost 20 Phase Shifting 20 Evasion (%) 85 Target Analysis 11 Core Analysis 8 Armor Integrity Analysis 30 Recoil Reduction 3 Kinecelleration 40 Offensive Hacking 50 Defensive Hacking 21 Authchip Count 1 Trap Extractor Capacity 8 Item Schematics ----------------- Hrd. Light Armor Plating | -9/Materials | Scanalyzed Welding Torch | -9/Materials | Scanalyzed Beam Cannon | -9/Materials | Extracted Hvy. Assault Rifle | -9/Materials | Extracted Lgt. Treads | -9/Materials | Extracted Hcp. Storage Unit | -9/Materials | Extracted Imp. Aluminum Leg | -9/Materials | Extracted Imp. VTOL Module | -8/Materials | Scanalyzed Aluminum Leg | -8/Materials | Extracted Hrd. Medium Armor Plating | -8/Materials | Extracted Salvage Targeting Computer | -8/Materials | Extracted Gauss Rifle | -8/Materials | Scanalyzed Imp. Light Armor Plating | -8/Materials | Scanalyzed Adv. Weight Redist. System | -8/Materials | Scanalyzed Adv. Treads | -8/Materials | Extracted Airjet | -8/Materials | Extracted Wheel | -8/Materials | Extracted Lrn. Proton Cannon | -7/Factory | Hacked Gatling Laser | -7/Factory | Scanalyzed Mic. Nuclear Core | -7/Factory | Scanalyzed Adv. Heat Sink | -7/Factory | Scanalyzed Power Sword | -7/Factory | Hacked Lgt. Armored Exoskeleton | -7/Factory | Hacked Hyp. Coil Gun | -7/Factory | Scanalyzed Combat Drone Bay | -7/Data Miner | Free Lgt. Regenerative Plating | -7/Data Miner | Free Multireflex Exoskeleton | -7/Data Miner | Free Exp. Targeting Computer | -7/Data Miner | Free Imp. Heavy Machine Gun | -7/Data Miner | Free Gyrokinetic Inverter | -7/Data Miner | Free Imp. Dynamic Insulation System | -7/Data Miner | Free Disruptor Cannon | -7/Data Miner | Free Nuclear Pulse Thruster | -6/Zion | Archive Adv. Shield Generator | -6/Zion | Archive Mass Driver | -6/Zion | Archive Magnetic Acceleration Cannon | -6/Zion | Archive Point Defense System | -6/Zion | Archive Hvy. Plasma Cannon | -6/Zion | Archive Imp. Point Defense System | -6/Zion | Archive Matter Neutralizer | -6/Zion | Archive Coil Gun | -6/Zion | Archive Hyp. Gauss Cannon | -6/Zion | Archive Antigrav System | -6/Zion | Archive Imp. Particle Charger | -6/Zion | Archive Imp. Focal Shield | -6/Zion | Archive Adv. Melee Analysis Suite | -6/Zion | Archive Riot Gun | -6/Zion | Free Flamer | -6/Zion | Free Barrage Gun | -6/Zion | Free Enh. Flamer | -6/Zion | Free Bore Cannon | -6/Zion | Free Cld. Impulse Thruster | -5/Factory | Hacked Nanoactuators | -4/Factory | Hacked Quantum Capacitor | -4/Factory | Hacked Tri-rail Accelerator | -4/Factory | Hacked Adv. Phase Shifter | -4/Factory | Scanalyzed Robot Schematics ------------------ O-24 Administrator | -7/Factory | Hacked E-15 Imp | -7/Data Miner | Free D-53 Grenadier | -7/Data Miner | Free L-41 Fighter | -7/Data Miner | Free M-28 Smith | -7/Data Miner | Free A-15 Conveyor | -6/Zion | Archive T-07 Excavator | -6/Zion | Archive S-27 Virus | -6/Zion | Archive H-88 Terminator | -6/Zion | Archive Fabricated ------------ Imp. Light Armor Plating | x2 | -7/Factory | Authchip X-67 Chaingunner | x2 | -6/Factory | Preloaded Lgt. Regenerative Plating | x1 | -6/Factory | Authchip HERF Cannon | x2 | -5/Factory | Preloaded Cld. Impulse Thruster | x1 | -5/Factory | Authchip H-88 Terminator | x2 | -5/Factory W-44 Eye | x2 | -4/Factory | Preloaded Lgt. Regenerative Plating | x1 | -4/Factory Cld. Impulse Thruster | x1 | -4/Factory Tri-rail Accelerator | x1 | -4/Factory Repaired ---------- Imp. Medium Laser | 15% | -9/Materials Gauss Rifle | 73% | -8/Materials | Broken Imp. VTOL Module | 64% | -7/Factory Hyp. Coil Gun | 50% | -7/Factory Hyp. Railgun | 49% | -6/Factory Imp. VTOL Module | 50% | -6/Factory Imp. VTOL Module | 50% | -6/Factory Plasma Sword | 15% | -5/Factory Lgt. Angular Momentum Engine | 71% | -5/Extension | Broken Nuclear Pulse Array | 18% | -4/Factory Enh. Quantum Rifle | 20% | -4/Factory | Broken Studied --------- Com. Wheel | -9/Materials | Hacked Arm. Wheel | -8/Materials | Hacked Lgt. Nuclear Core | -7/Factory | Hacked Gauss Rifle | -7/Factory | Hacked Mic. Nuclear Core | -7/Factory | Hacked Rocket Launcher | -7/Factory | Hacked Alien Tech Used ----------------- None Achievements -------------- None Challenges ------------ None Game ------ Seed AerolevBracePlating Manual? 0 Play Time 07:16:27 Cumulative 301.7 hours Start 2026.01.10 @ 14:00:34 End 2026.01.11 @ 13:53:32 Sessions 5 Manual Loads 0 Difficulty Rogue Special Mode None Game No. 362 Rogue 361 Adventurer 1 Explorer 0 Win Type - Total 3 Types 1/0/0/1/1/0/0/0/0/0 Lore% 76 Gallery% 69 Achievement% 58 Wizard Run 0 Options --------- Layout 0 ASCII 0 Keyboard 0 Movement Numpad Keybinds 0 Fullscreen 0 Font 20/SmallcapsGlow Map View 76x50 Zoom Use 0% Tactical HUD 1 Map Filters NONE Filters NONE Steam 1 RUN: dcd5b1c1-d6bd-4ed4-a51a-6daae894e42f